Workbook

Sheet aliquota
A1: anno | B1: non assicurato | C1: già assicurato | D1: titolare pensione | E1: professionista
A3: 2000 | B3: 0.13 | C3: 0.1 | D3: 0.1 | E3: 0.13
A4: 2001 | B4: 0.13 | C4: 0.1 | D4: 0.1 | E4: 0.13
A5: 2002 | B5: 0.14 | C5: 0.1 | D5: 0.1 | E5: 0.14
A6: 2003 | B6: 0.14 | C6: 0.1 | D6: 0.125 | E6: 0.14
A7: 2004 | B7: 0.178 | C7: 0.1 | D7: 0.15 | E7: 0.178
A8: 2005 | B8: 0.18 | C8: 0.1 | D8: 0.15 | E8: 0.18
A9: 2006 | B9: 0.182 | C9: 0.1 | D9: 0.15 | E9: 0.182
A10: 2007 | B10: 0.235 | C10: 0.16 | D10: 0.16 | E10: 0.235
A11: 2008 | B11: 0.2472 | C11: 0.17 | D11: 0.17 | E11: 0.2472
A12: 2009 | B12: 0.2572 | C12: 0.17 | D12: 0.17 | E12: 0.2572
A13: 2010 | B13: 0.2672 | C13: 0.17 | D13: 0.17 | E13: 0.2672
A14: 2011 | B14: 0.2672 | C14: 0.17 | D14: 0.17 | E14: 0.2672
A15: 2012 | B15: 0.2772 | C15: 0.18 | D15: 0.18 | E15: 0.2772
A16: 2013 | B16: 0.2772 | C16: 0.2 | D16: 0.2 | E16: 0.2772
A17: 2014 | B17: 0.2872 | C17: 0.22 | D17: 0.22 | E17: 0.2772
A18: 2015 | B18: 0.3072 | C18: 0.235 | D18: 0.235 | E18: 0.2772
A19: 2016
A20: 2017
A21: 2018
A22: 2019
A23: 2020

Sheet libprof
F4: CALCOLO CONTRIBUTI E SANZIONI LIBERI PROFESSIONISTI
G8: Professionista: | I8: Tizio Alessandro
E10: data calcolo: | O10: int.mora | P10: tasso morosità | Q10: tasso/giorni
E11: 2015-12-20 | G11: anno | H11: 2014 | M11: data verbale | N11: =E11 -> 42358 | O11: =VLOOKUP($E$11,tassi,5) -> 0.0488 | P11: =VLOOKUP($E$11,tassi,4) -> 0.0555 | Q11: =$P$11/365 -> 0.0001520547945 | W11: 2000 | X11: 0.14 | Y11: gennaio | Z11: 1 | AA11: =IF(C16=1,VLOOKUP($H$11,aliquota!A1:E30,5),IF(C16=2,VLOOKUP($H$11,aliquota!A1:E30,3),IF(C16=3,VLOOKUP($H$11,aliquota!A1:E30,4),""))) -> 0.2772 | AB11: =AA11 -> 0.2772
W12: 2001 | X12: 0.14 | Y12: febbraio | Z12: 2 | AA12: =IF(C17=1,VLOOKUP($H$11,aliquota!A1:E31,5),IF(C17=2,VLOOKUP($H$11,aliquota!A1:E31,3),IF(C17=3,VLOOKUP($H$11,aliquota!A1:E31,4),""))) -> 0.2772 | AB12: =AA12 -> 0.2772
W13: 2002 | X13: 0.178 | Y13: marzo | Z13: 3
B14: E/M | C14: tipo | D14: scadenze | E14: imp.le compenso | F14: aliquota % | G14: contributo dovuto | H14: data versamento | I14: tasso % | J14: sanzione | K14: interessi mora | L14: totale dovuto | O14: giorni tot. | P14: giorniXint. | Q14: sanzioni evasione | R14: interessi evasione | S14: giorni x 40% | T14: sanzioni morosità | U14: giorniXint. | V14: interessi morosità | W14: 2003 | X14: 0.18 | Y14: aprile | Z14: 4
W15: 2004 | X15: 0.182 | Y15: maggio | Z15: 5
B16: E | C16: 1 | D16: saldo a.p. e 1° acc. | E16: 10000 | F16: =AB11 -> 0.2772 | G16: =IF(E16>0,ROUND((E16*F16),),"") -> 2772 | H16: =IF(E16>0,DATE($H$11+1,6,20),"") -> 2015-06-20 | I16: =IF(B16="E","30%",$P$11) -> 30% | J16: =IF(E16>0,IF(B16="E",ROUND(Q16,),ROUND(T16,)),"") -> 417 | K16: =IF(E16>0,IF(B16="E",ROUND(R16,),ROUND(V16,)),"") -> 0 | L16: =IF(E16>0,(G16+J16+K16),"") -> 3189 | N16: =H16 -> 42175 | O16: =$N$11-H16 -> 183 | P16: =IF(O16>730,O16-730,0) -> 0 | Q16: =IF(E16<=0,"",IF(G16*O16*(I16/365)>0.6*G16,0.6*G16,G16*O16*(I16/365))) -> 416.9391781 | R16: =IF(P16>0,G16*$O$11/365*P16,0) -> 0 | S16: =40/$Q$11/100 -> 2630.630631 | T16: =IF(E16<=0,"",IF(G16*O16*(I16/365)>0.4*G16,0.4*G16,G16*O16*(I16/365))) -> 416.9391781 | U16: =IF(O16<S16,0,O16-S16) -> 0 | V16: =IF(U16>0,G16*$O$11/365*U16,0) -> 0 | W16: 2005 | X16: 0.235 | Y16: giugno | Z16: 6
B17: e | C17: 1 | D17: 2° acconto | E17: 20000 | F17: =AB12 -> 0.2772 | G17: =IF(E17>0,ROUND((E17*F17),),"") -> 5544 | H17: =IF(E17>0,DATE($H$11+1,11,30),"") -> 2015-11-30 | I17: =IF(B17="E","30%",$P$11) -> 30% | J17: =IF(E17>0,IF(B17="E",ROUND(Q17,),ROUND(T17,)),"") -> 91 | K17: =IF(E17>0,IF(B17="E",ROUND(R17,),ROUND(V17,)),"") -> 0 | L17: =IF(E17>0,(G17+J17+K17),"") -> 5635 | N17: =H17 -> 42338 | O17: =$N$11-H17 -> 20 | P17: =IF(O17>730,O17-730,0) -> 0 | Q17: =IF(E17<=0,"",IF(G17*O17*(I17/365)>0.6*G17,0.6*G17,G17*O17*(I17/365))) -> 91.13424658 | R17: =IF(P17>0,G17*$O$11/365*P17,0) -> 0 | S17: =40/$Q$11/100 -> 2630.630631 | T17: =IF(E17<=0,"",IF(G17*O17*(I17/365)>0.4*G17,0.4*G17,G17*O17*(I17/365))) -> 91.13424658 | U17: =IF(O17<S17,0,O17-S17) -> 0 | V17: =IF(U17>0,G17*$O$11/365*U17,0) -> 0 | W17: 2006 | X17: 0 | Y17: luglio | Z17: 7
W18: 2007
W19: 2008
D20: TOTALI | E20: =SUM(E16:E19) -> 30000 | G20: =SUM(G16:G19) -> 8316 | J20: =SUM(J16:J19) -> 508 | K20: =SUM(K16:K19) -> 0 | L20: =SUM(L16:L17) -> 8824 | W20: 2009
W21: 2010
W22: 2011
W23: 2012
W24: 2013
W25: 2014
W26: 2015
W27: 2016
W28: 2017
W29: 2018
W30: 2019
W31: 2020

Sheet cococo
F3: CALCOLO CONTRIBUTI E SANZIONI PARASUBORDINATI
G5: AZIENDA: | I5: Prova
G7: Collaboratore: | I7: Francesco Caio | P7: tasso evasione
P8: 0.3
E9: data calcolo: | P9: tasso morosità | Q9: tasso/giorni
E10: 2015-12-04 | G10: anno | H10: 2014 | M10: data verbale | N10: =E10 -> 42342 | O10: =VLOOKUP($E$10,tassi,5) -> 0.0488 | P10: =VLOOKUP($E$10,tassi,4) -> 0.0555 | Q10: =$P$10/365 -> 0.0001520547945 | W10: 2000 | X10: 0.14 | Y10: gennaio | Z10: 1 | AA10: =IF(C15=1,VLOOKUP($H$10,aliquota!$A$1:$E$30,2),IF(C15=2,VLOOKUP($H$10,aliquota!$A$1:$E$30,3),IF(C15=3,VLOOKUP($H$10,aliquota!$A$1:$E$30,4),""))) -> 0.2872 | AB10: =AA10 -> 0.2872
W11: 2001 | X11: 0.14 | Y11: febbraio | Z11: 2 | AA11: =IF(C16=1,VLOOKUP($H$10,aliquota!$A$1:$E$30,2),IF(C16=2,VLOOKUP($H$10,aliquota!$A$1:$E$30,3),IF(C16=3,VLOOKUP($H$10,aliquota!$A$1:$E$30,4),""))) -> 0.2872 | AB11: 0.2872
P12: EVASIONE | S12: MOROSITA' | W12: 2002 | X12: 0.178 | Y12: marzo | Z12: 3 | AA12: =IF(C17=1,VLOOKUP($H$10,aliquota!$A$1:$E$30,2),IF(C17=2,VLOOKUP($H$10,aliquota!$A$1:$E$30,3),IF(C17=3,VLOOKUP($H$10,aliquota!$A$1:$E$30,4),""))) -> 0.2872 | AB12: 0.2872
B13: E/M | C13: tipo | D13: mese | E13: imp.le compenso | F13: aliquota % | G13: contributo dovuto | H13: data versamento | I13: tasso % evasione | J13: sanzione | K13: interessi mora | L13: totale dovuto | O13: giorni tot. | P13: giorniXint. | Q13: sanzioni | R13: interessi | S13: giorni x 40% | T13: sanzioni morosità | U13: giorniXint. | V13: interessi morosità | W13: 2003 | X13: 0.18 | Y13: aprile | Z13: 4 | AA13: =IF(C18=1,VLOOKUP($H$10,aliquota!$A$1:$E$30,2),IF(C18=2,VLOOKUP($H$10,aliquota!$A$1:$E$30,3),IF(C18=3,VLOOKUP($H$10,aliquota!$A$1:$E$30,4),""))) -> 0.2872 | AB13: 0.2872
W14: 2004 | X14: 0.182 | Y14: maggio | Z14: 5 | AA14: =IF(C19=1,VLOOKUP($H$10,aliquota!$A$1:$E$30,2),IF(C19=2,VLOOKUP($H$10,aliquota!$A$1:$E$30,3),IF(C19=3,VLOOKUP($H$10,aliquota!$A$1:$E$30,4),""))) -> 0.2872 | AB14: 0.2872
B15: M | C15: 1 | D15: 1 | E15: 2100 | F15: =AB10 -> 0.2872 | G15: =IF(E15>0,ROUND((E15*F15),),"") -> 603 | H15: =IF(E15>0,DATE($H$10,D15+1,16),"") -> 2014-02-16 | I15: =IF(E15>0,IF(B15="E","30%",$P$10),"") -> 0.0555 | J15: =IF(E15>0,IF(B15="E",ROUND(Q15,),ROUND(T15,)),"") -> 60 | K15: =IF(E15>0,IF(B15="E",ROUND(R15,),ROUND(V15,)),"") -> 0 | L15: =IF(E15>0,(G15+J15+K15),"") -> 663 | N15: =H15 -> 41686 | O15: =$N$10-H15 -> 656 | P15: =IF(O15>730,O15-730,0) -> 0 | Q15: =IF(E15<=0,"",IF(G15*O15*($P$8/365)>0.6*G15,0.6*G15,G15*O15*($P$8/365))) -> 325.1243836 | R15: =IF(P15>0,G15*$O$10/365*P15,0) -> 0 | S15: =40/$Q$10/100 -> 2630.630631 | T15: =IF(E15<=0,"",IF(G15*O15*(I15/365)>0.4*G15,0.4*G15,G15*O15*(I15/365))) -> 60.14801096 | U15: =IF(O15<S15,0,O15-S15) -> 0 | V15: =IF(U15>0,G15*$O$10/365*U15,0) -> 0 | W15: 2005 | X15: 0.235 | Y15: giugno | Z15: 6 | AA15: =IF(C20=1,VLOOKUP($H$10,aliquota!$A$1:$E$30,2),IF(C20=2,VLOOKUP($H$10,aliquota!$A$1:$E$30,3),IF(C20=3,VLOOKUP($H$10,aliquota!$A$1:$E$30,4),""))) -> 0.2872 | AB15: 0.2872
B16: M | C16: 1 | D16: 2 | E16: 1550 | F16: 0.2872 | G16: 445 | H16: 2014-03-16 | I16: =IF(E16>0,IF(B16="E","30%",$P$10),"") -> 0.0555 | J16: =IF(E16>0,IF(B16="E",ROUND(Q16,),ROUND(T16,)),"") -> 42 | K16: =IF(E16>0,IF(B16="E",ROUND(R16,),ROUND(V16,)),"") -> 0 | L16: 487 | N16: 41714 | O16: 628 | P16: 0 | Q16: =IF(E16<=0,"",IF(G16*O16*($P$8/365)>0.6*G16,0.6*G16,G16*O16*($P$8/365))) -> 229.6931507 | R16: 0 | S16: =40/$Q$10/100 -> 2630.630631 | T16: =IF(E16<=0,"",IF(G16*O16*(I16/365)>0.4*G16,0.4*G16,G16*O16*(I16/365))) -> 42.49323288 | U16: =IF(O16<S16,0,O16-S16) -> 0 | V16: =IF(U16>0,G16*$O$10/365*U16,0) -> 0 | W16: 2006 | X16: 0 | Y16: luglio | Z16: 7 | AA16: =IF(C21=1,VLOOKUP($H$10,aliquota!$A$1:$E$30,2),IF(C21=2,VLOOKUP($H$10,aliquota!$A$1:$E$30,3),IF(C21=3,VLOOKUP($H$10,aliquota!$A$1:$E$30,4),""))) -> 0.2872 | AB16: 0.2872
B17: M | C17: 1 | D17: 3 | E17: 1300 | F17: 0.2872 | G17: 373 | H17: 2014-04-16 | I17: 0.0555 | J17: 34 | K17: 0 | L17: 407 | N17: 41745 | O17: 597 | P17: 0 | Q17: 183.0254795 | R17: 0 | S17: =40/$Q$10/100 -> 2630.630631 | T17: 33.8597137 | U17: =IF(O17<S17,0,O17-S17) -> 0 | V17: =IF(U17>0,G17*$O$10/365*U17,0) -> 0 | W17: 2007 | X17: 0 | Y17: agosto | Z17: 8 | AA17: =IF(C22=1,VLOOKUP($H$10,aliquota!$A$1:$E$30,2),IF(C22=2,VLOOKUP($H$10,aliquota!$A$1:$E$30,3),IF(C22=3,VLOOKUP($H$10,aliquota!$A$1:$E$30,4),""))) -> 0.2872 | AB17: 0.2872
B18: M | C18: 1 | D18: 4 | E18: 900 | F18: 0.2872 | G18: 258 | H18: 2014-05-16 | I18: 0.0555 | J18: 22 | K18: 0 | L18: 280 | N18: 41775 | O18: 567 | P18: 0 | Q18: 120.2350685 | R18: 0 | S18: 2630.630631 | T18: 22.24348767 | U18: 0 | V18: 0 | W18: 2008 | X18: 0 | Y18: settembre | Z18: 9 | AA18: =IF(C23=1,VLOOKUP($H$10,aliquota!$A$1:$E$30,2),IF(C23=2,VLOOKUP($H$10,aliquota!$A$1:$E$30,3),IF(C23=3,VLOOKUP($H$10,aliquota!$A$1:$E$30,4),""))) -> 0.2872 | AB18: 0.2872
B19: M | C19: 1 | D19: 5 | E19: 1000 | F19: 0.2872 | G19: 287 | H19: 2014-06-16 | I19: 0.0555 | J19: 23 | K19: 0 | L19: 310 | N19: 41806 | O19: 536 | P19: 0 | Q19: 126.4372603 | R19: 0 | S19: 2630.630631 | T19: 23.39089315 | U19: 0 | V19: 0 | W19: 2009 | Y19: ottobre | Z19: 10 | AA19: =IF(C24=1,VLOOKUP($H$10,aliquota!$A$1:$E$30,2),IF(C24=2,VLOOKUP($H$10,aliquota!$A$1:$E$30,3),IF(C24=3,VLOOKUP($H$10,aliquota!$A$1:$E$30,4),""))) -> 0.2872 | AB19: 0.2872
B20: m | C20: 1 | D20: 6 | E20: 1300 | F20: 0.2872 | G20: 373 | H20: 2014-07-16 | I20: 0.0555 | J20: 29 | K20: 0 | L20: 402 | N20: 41836 | O20: 506 | P20: 0 | Q20: 155.1271233 | R20: 0 | S20: 2630.630631 | T20: 28.69851781 | U20: 0 | V20: 0 | W20: 2010 | Y20: novembre | Z20: 11 | AA20: =IF(C25=1,VLOOKUP($H$10,aliquota!$A$1:$E$30,2),IF(C25=2,VLOOKUP($H$10,aliquota!$A$1:$E$30,3),IF(C25=3,VLOOKUP($H$10,aliquota!$A$1:$E$30,4),""))) ->  | AB20: =IF($H$10=2007,AA20+0.22%,AA20) -> 
B21: m | C21: 1 | D21: 7 | E21: 1800 | F21: 0.2872 | G21: 517 | H21: 2014-08-16 | I21: 0.0555 | J21: 37 | K21: 0 | L21: 554 | N21: 41867 | O21: 475 | P21: 0 | Q21: 201.8424658 | R21: 0 | S21: 2630.630631 | T21: 37.34085616 | U21: 0 | V21: 0 | W21: 2011 | Y21: dicembre | Z21: 12 | AA21: =IF(C26=1,VLOOKUP($H$10,aliquota!$A$1:$E$30,2),IF(C26=2,VLOOKUP($H$10,aliquota!$A$1:$E$30,3),IF(C26=3,VLOOKUP($H$10,aliquota!$A$1:$E$30,4),""))) ->  | AB21: =IF($H$10=2007,AA21+0.22%,AA21) -> 
B22: m | C22: 1 | D22: 8 | E22: 1900 | F22: 0.2872 | G22: 546 | H22: 2014-09-16 | I22: 0.0555 | J22: 37 | K22: 0 | L22: 583 | N22: 41898 | O22: 444 | P22: 0 | Q22: 199.2526027 | R22: 0 | S22: 2630.630631 | T22: 36.86173151 | U22: 0 | V22: 0 | W22: 2012
B23: m | C23: 1 | D23: 9 | E23: 1400 | F23: 0.2872 | G23: 402 | H23: 2014-10-16 | I23: 0.0555 | J23: 25 | K23: 0 | L23: 427 | N23: 41928 | O23: 414 | P23: 0 | Q23: 136.790137 | R23: 0 | S23: 2630.630631 | T23: 25.30617534 | U23: 0 | V23: 0 | W23: 2013
B24: m | C24: 1 | D24: 10 | E24: 1100 | F24: 0.2872 | G24: 316 | H24: 2014-11-16 | I24: 0.0555 | J24: 18 | K24: 0 | L24: 334 | N24: 41959 | O24: 383 | P24: 0 | Q24: 99.47506849 | R24: 0 | S24: 2630.630631 | T24: 18.40288767 | U24: 0 | V24: 0 | W24: 2014
S25: 2630.630631 | W25: 2015
S26: 2630.630631 | W26: 2016
W27: 2017
W28: 2018
D29: TOTALI | E29: =SUM(E15:E28) -> 14350 | G29: =SUM(G15:G28) -> 4120 | J29: =SUM(J15:J28) -> 327 | K29: =SUM(K15:K28) -> 0 | L29: =SUM(L15:L26) -> 4447 | W29: 2019
W30: 2020

Sheet MENU
G9: CALCOLO SANZIONI L.388/2000
G13: SANZIONI AZIENDE | N13: SANZIONI FALLIMENTI
G15: SANZIONI AZIENDE CON ACCONTI | N15: CALCOLO INTERESSI LEGALI
G17: SANZIONI AUTONOMI | N17: SANZIONI CO.CO.CO.
G19: SANZIONI AZIENDE AGRICOLE | N19: SANZIONI LIBERI PROFESSIONISTI
G21: SANZIONI CD/CM | N21: ALIQUOTE GEST. SEPARATA
G24: SANZIONI DOMESTICI
G27: MODIFICA TASSI | N27: MODIFICA SCADENZE CD/CM
D36: versione: | E36: 2015-06-05

Sheet sanzioni aziende acconti
G2: DITTA: | H2: prova
T3: 35450 | AD3: INTERESSI | AO3: inad : | AP3: =IF(G12=""," ",G12) -> 502 | AT3: ditta : | AU3: =H2 -> prova | BA3: 1995 | BC3: E
G4: MATRICOLA | I4: 8100000081 | R4: E | AD4: DI MORA | BA4: 1996 | BC4: M
R5: M | AO5: data calcolo: | AP5: =$H$6 -> 2013-10-14 | AT5: matricola : | AU5: =I4 -> 8100000081
G6: DATA | H6: 2013-10-14 | K6: IMPORTI IN EURO | Q6: =H6 -> 41561 | AD6: =VLOOKUP($H$6,tassi,5) -> 0.05223 | BA6: 1997
G7: TIPO (E/M) | I7: m | P7: MOROSITA' =1 | AO7: TIPO EVENTO : | AP7: =IF($I$7="M","MOROSITA'","EVASIONE") -> MOROSITA' | AR7: =IF($I$4=""," ",$I$4) -> 8100000081 | BA7: 1998
G8: TASSO CORRENTE......................... | P8: EVASIONE=2 | BA8: 1999
G10: INADEMPIENZA | U10: EVASIONE | V10: morosità | W10: MOROSITA' | X10: IVS | Y10: IVS | Z10: SSN | AA10: SSN | AD10: IVS | AE10: SSN | AF10: IVS | AG10: SSN | AL10: N. | AM10: PERIODO | AO10: IMPORTO | AP10: IMPORTO | AQ10: EVAS. | AR10: GG | AS10: TASSO | AT10: SANZIONI | AU10: INTERESSI | AV10: SANZIONI | AW10: INTERESSI | AX10: TOTALE | BA10: 2000
G11: N. | H11: DAL | I11: AL | J11: valuta media | K11: IMPORTO CONTRIBUTI IVS | L11: IMPORTO CONTRIBUTI SSN | M11: TIPO E/M | N11: TASSO | P11: flag morosità | Q11: DATA1 | R11: DATA2 | S11: MEDIA | T11: GIORNI TOT. | U11: GIORNIxINT. | V11: giorni x 40% | W11: GIORNIxINT. | X11: SANZIONI EVASIONE | Y11: SANZIONI MOROSITA' | Z11: SANZIONI EVASIONE | AA11: SANZIONI MOROSITA' | AB11: TASSO | AC11: TASSO/GIORNI | AD11: INT. EVASIONE | AE11: INT.EVASIONE | AF11: INT. MOROSITA' | AG11: INT. MOROSITA' | AL11: inad. | AM11: DAL | AN11: AL | AO11: CONTRIBUTI IVS al netto degli acconti | AP11: CONTRIBUTI SSN al netto degli acconti | AQ11: MOR. | AT11: IVS debito residuo | AU11: DI MORA IVS debito res. | AV11: SSN debito residuo | AW11: DI MORA SSN debito res. | AX11: SANZIONI debito residuo | BA11: 2001
G12: 502 | H12: 2000-02-01 | I12: 2001-02-12 | J12: =IF(H12=""," ",S12) -> 2000-09-14T12:00:00 | K12: 36000 | M12: m | N12: =IF($M$12=""," ",IF($M$12="M",VLOOKUP($H$6,tassi,4),VLOOKUP($H$6,tassi,2))) -> 0.06 | P12: =IF(M12="M",1,2) -> 1 | Q12: =IF(H12=0,0,IF(YEAR(H12)<1998,DATE(YEAR(H12),MONTH(H12)+1,20),IF(AND(YEAR(H12)=1998,MONTH(H12)<4),DATE(YEAR(H12),MONTH(H12)+1,20),IF(YEAR(H12)>1998,DATE(YEAR(H12),MONTH(H12)+1,16),DATE(YEAR(H12),MONTH(H12)+1,15))))) -> 2000-03-16 | R12: =IF(I12=0,0,IF(YEAR(I12)<1998,DATE(YEAR(I12),MONTH(I12)+1,20),IF(AND(YEAR(I12)=1998,MONTH(I12)<4),DATE(YEAR(I12),MONTH(I12)+1,20),IF(YEAR(I12)>1998,DATE(YEAR(I12),MONTH(I12)+1,16),DATE(YEAR(I12),MONTH(I12)+1,15))))) -> 2001-03-16 | S12: =AVERAGE(Q12,R12) -> 2000-09-14T12:00:00 | T12: =IF(S12<>0,$Q$6-S12,0) -> 4777.5 | U12: =IF(T12>730,T12-730,0) -> 4047.5 | V12: =IF(P12=2,0,40/AC12/100) -> 2433.333333 | W12: =IF(V12=0,0,IF(T12<V12,0,T12-V12)) -> 2344.166667 | X12: =IF(T12<=0,0,IF((K12-K35)*T12*AC12>0.6*(K12-K35),0.6*(K12-K35),(K12-K35)*T12*AC12)) -> 19800 | Y12: =IF(T12<=0,0,IF((K12-K35)*T12*AC12>0.4*(K12-K35),0.4*(K12-K35),(K12-K35)*T12*AC12)) -> 13200 | Z12: =IF(T12<=0,0,IF((L12-L35)*T12*AC12>0.6*(L12-L35),0.6*(L12-L35),(L12-L35)*T12*AC12)) -> 0 | AA12: =IF(T12<=0,0,IF((L12-L35)*T12*AC12>0.4*(L12-L35),0.4*(L12-L35),(L12-L35)*T12*AC12)) -> 0 | AB12: =N12 -> 0.06 | AC12: =AB12/365 -> 0.0001643835616 | AD12: =IF(U12>0,(K12-K35)*$AD$6/365*U12,0) -> 19112.96034 | AE12: =IF(U12>0,(L12-L35)*$AD$6/365*U12,0) -> 0 | AF12: =IF(W12>0,(K12-K35)*$AD$6/365*W12,0) -> 11069.54034 | AG12: =IF(W12>0,(L12-L35)*$AD$6/365*W12,0) -> 0 | AL12: =G12 -> 502 | AM12: =IF(H12>0,H12,"") -> 2000-02-01 | AN12: =IF(I12>0,I12,"") -> 2001-02-12 | AO12: =IF(K12>0,(K12-K35),0) -> 33000 | AP12: =IF(L12>0,(L12-L35),0) -> 0 | AQ12: =M12 -> m | AR12: =IF(S12>0,INT(T12),"") -> 4777 | AS12: =IF(N12=""," ",N12) -> 0.06 | AT12: =IF(P12=1,Y12,X12) -> 13200 | AU12: =IF(P12=1,AF12,AD12) -> 11069.54034 | AV12: =IF(P12=1,AA12,Z12) -> 0 | AW12: =IF(P12=1,AG12,AE12) -> 0 | AX12: =AT12+AU12+AV12+AW12 -> 24269.54034 | BA12: 2002
G13: ACCONTI | U13: EVASIONE | V13: morosità | W13: MOROSITA' | X13: IVS | Y13: IVS | Z13: SSN | AA13: SSN | AD13: IVS | AE13: SSN | AF13: IVS | AG13: SSN
G14: N. | J14: DATA VERSAMENTO | K14: IMPORTO CONTRIBUTI IVS | L14: IMPORTO CONTRIBUTI SSN | N14: TASSO | Q14: DATA INAD. | S14: DATA VERS. | T14: GIORNI TOT. | U14: GIORNIxINT. | V14: giorni x 40% | W14: GIORNIxINT. | X14: SANZIONI EVASIONE | Y14: SANZIONI MOROSITA' | Z14: SANZIONI EVASIONE | AA14: SANZIONI MOROSITA' | AB14: TASSO | AC14: TASSO/GIORNI | AD14: INT. EVASIONE | AE14: INT.EVASIONE | AF14: INT. MOROSITA' | AG14: INT. MOROSITA' | AL14: N. | AM14: DATA VERS. | AO14: IMPORTO CONTRIBUTI IVS acconto | AP14: IMPORTO CONTRIBUTI SSN acconto | AR14: GG | AS14: TASSO | AT14: SANZIONI IVS acconti | AU14: INTERESSI DI MORA IVS acconti | AV14: SANZIONI SSN acconti | AW14: INTERESSI DI MORA SSN acconti | AX14: TOTALE SANZIONI acconti
G15: 1 | H15: =IF(J15=""," ",IF(J15<$J$12,"data errata"," ")) ->  | J15: 2011-01-13 | K15: 1000 | N15: =IF(J15=""," ",IF($M$12="M",VLOOKUP(J15,tassi,4),VLOOKUP(J15,tassi,2))) -> 0.065 | P15: =IF($M$12="M",1,2) -> 1 | Q15: =$J$12 -> 2000-09-14T12:00:00 | S15: =IF(J15="",0,J15) -> 2011-01-13 | T15: =IF(S15<>0,S15-Q15,0) -> 3772.5 | U15: =IF(T15>730,T15-730,0) -> 3042.5 | V15: =IF(P15=2,0,IF(AC15=0,0,40/AC15/100)) -> 2246.153846 | W15: =IF(V15=0,0,IF(T15<V15,0,T15-V15)) -> 1526.346154 | X15: =IF(T15<=0,"",IF(K15*T15*AC15>0.6*K15,0.6*K15,K15*T15*AC15)) -> 600 | Y15: =IF(T15<=0,"",IF(K15*T15*AC15>0.4*K15,0.4*K15,K15*T15*AC15)) -> 400 | Z15: =IF(T15<=0,"",IF(L15*T15*AC15>0.6*L15,0.6*L15,L15*T15*AC15)) -> 0 | AA15: =IF(T15<=0,"",IF(L15*T15*AC15>0.4*L15,0.4*L15,L15*T15*AC15)) -> 0 | AB15: =IF(N15=" ",0,N15) -> 0.065 | AC15: =AB15/365 -> 0.0001780821918 | AD15: =IF(U15>0,K15*$AD$6/365*U15,"") -> 435.3692466 | AE15: =IF(U15>0,L15*$AD$6/365*U15,"") -> 0 | AF15: =IF(W15>0,K15*$AD$6/365*W15,"") -> 218.413862 | AG15: =IF(L15>0,IF(W15>0,L15*$AD$6/365*W15,""),"") ->  | AL15: =G15 -> 1 | AM15: =IF(J15=""," ",J15) -> 2011-01-13 | AN15: =IF(I15>0,I15,"") ->  | AO15: =IF(K15>0,K15,"") -> 1000 | AP15: =IF(L15>0,L15,"") ->  | AQ15: =M15 -> 0 | AR15: =IF(S15>0,INT(T15),"") -> 3772 | AS15: =IF(N15=""," ",N15) -> 0.065 | AT15: =IF(P15=1,Y15,X15) -> 400 | AU15: =IF(P15=1,AF15,AD15) -> 218.413862 | AV15: =IF(P15=1,AA15,Z15) -> 0 | AW15: =IF(P15=1,AG15,AE15) ->  | AX15: =IF(T15>0,SUMIF(AT15:AW15,"<>"""),"") -> 618.413862 | BA15: 2003
G16: 2 | J16: 2012-03-16 | K16: 2000 | N16: 0.065 | P16: 1 | Q16: 2000-09-14T12:00:00 | S16: 2012-03-16 | T16: 4200.5 | U16: 3470.5 | V16: 2246.153846 | W16: 1954.346154 | X16: 1200 | Y16: 800 | Z16: 0 | AA16: 0 | AB16: 0.065 | AC16: 0.0001780821918 | AD16: 993.2285753 | AE16: 0 | AF16: 559.3178061 | AG16: =IF(L16>0,IF(W16>0,L16*$AD$6/365*W16,""),"") ->  | AL16: 2 | AM16: 2012-03-16 | AO16: 2000 | AQ16: 0 | AR16: 4200 | AS16: 0.065 | AT16: 800 | AU16: 559.3178061 | AV16: 0 | AX16: 1359.317806 | BA16: 2004
G17: 3 | P17: 1 | Q17: 2000-09-14T12:00:00 | S17: 00:00:00 | T17: 0 | U17: 0 | V17: 0 | W17: 0 | AB17: 0 | AC17: 0 | AL17: 3 | AQ17: 0 | BA17: 2005
G18: 4 | P18: 1 | Q18: 2000-09-14T12:00:00 | S18: 00:00:00 | T18: 0 | U18: 0 | V18: 0 | W18: 0 | AB18: 0 | AC18: 0 | AL18: 4 | AQ18: 0 | BA18: 2006
G19: 5 | P19: 1 | Q19: 2000-09-14T12:00:00 | S19: 00:00:00 | T19: 0 | U19: 0 | V19: 0 | W19: 0 | AB19: 0 | AC19: 0 | AL19: 5 | AQ19: 0 | BA19: 2007
G20: 6 | P20: 1 | Q20: 2000-09-14T12:00:00 | S20: 00:00:00 | T20: 0 | U20: 0 | V20: 0 | W20: 0 | AB20: 0 | AC20: 0 | AL20: 6 | AQ20: 0 | BA20: 2008
G21: 7 | P21: 1 | Q21: 2000-09-14T12:00:00 | S21: 00:00:00 | T21: 0 | U21: 0 | V21: 0 | W21: 0 | AB21: 0 | AC21: 0 | AL21: 7 | AQ21: 0 | BA21: 2009
G22: 8 | P22: 1 | Q22: 2000-09-14T12:00:00 | S22: 00:00:00 | T22: 0 | U22: 0 | V22: 0 | W22: 0 | AB22: 0 | AC22: 0 | AL22: 8 | AQ22: 0 | BA22: 2010
G23: 9 | P23: 1 | Q23: 2000-09-14T12:00:00 | S23: 00:00:00 | T23: 0 | U23: 0 | V23: 0 | W23: 0 | AB23: 0 | AC23: 0 | AL23: 9 | AQ23: 0
G24: 10 | P24: 1 | Q24: 2000-09-14T12:00:00 | S24: =IF(J24="",0,J24) -> 00:00:00 | T24: =IF(S24<>0,S24-Q24,0) -> 0 | U24: 0 | V24: =IF(P24=2,0,IF(AC24=0,0,40/AC24/100)) -> 0 | W24: =IF(V24=0,0,IF(T24<V24,0,T24-V24)) -> 0 | X24: =IF(T24<=0,"",IF(K24*T24*AC24>0.6*K24,0.6*K24,K24*T24*AC24)) ->  | Y24: =IF(T24<=0,"",IF(K24*T24*AC24>0.4*K24,0.4*K24,K24*T24*AC24)) ->  | Z24: =IF(T24<=0,"",IF(L24*T24*AC24>0.6*L24,0.6*L24,L24*T24*AC24)) ->  | AA24: =IF(T24<=0,"",IF(L24*T24*AC24>0.4*L24,0.4*L24,L24*T24*AC24)) ->  | AB24: =IF(N24=" ",0,N24) -> 0 | AC24: 0 | AD24: =IF(U24>0,K24*$AD$6/365*U24,"") ->  | AE24: =IF(U24>0,L24*$AD$6/365*U24,"") ->  | AF24: =IF(W24>0,K24*$AD$6/365*W24,"") ->  | AL24: 10 | AM24: =IF(J24=""," ",J24) ->  | AN24: =IF(I24>0,I24,"") ->  | AP24: =IF(L24>0,L24,"") ->  | AQ24: =M24 -> 0 | AR24: =IF(S24>0,INT(T24),"") ->  | AS24: =IF(N24=""," ",N24) ->  | AT24: =IF(P24=1,Y24,X24) ->  | AU24: =IF(P24=1,AF24,AD24) ->  | AV24: =IF(P24=1,AA24,Z24) ->  | AW24: =IF(P24=1,AG24,AE24) -> 
G25: 11 | P25: 1 | Q25: 2000-09-14T12:00:00 | S25: 00:00:00 | T25: 0 | U25: 0 | V25: 0 | W25: 0 | AB25: 0 | AC25: 0 | AL25: 11 | AQ25: 0
G26: 12 | P26: 1 | Q26: 2000-09-14T12:00:00 | S26: 00:00:00 | T26: 0 | U26: 0 | V26: 0 | W26: 0 | AB26: 0 | AC26: 0 | AL26: 12 | AQ26: 0
G27: 13 | P27: 1 | Q27: 2000-09-14T12:00:00 | S27: 00:00:00 | T27: 0 | U27: 0 | V27: 0 | W27: 0 | AB27: 0 | AC27: 0 | AL27: 13 | AQ27: 0
G28: 14 | P28: 1 | Q28: 2000-09-14T12:00:00 | S28: 00:00:00 | T28: 0 | U28: 0 | V28: 0 | W28: 0 | AB28: 0 | AC28: 0 | AL28: 14 | AQ28: 0
G29: 15 | P29: 1 | Q29: 2000-09-14T12:00:00 | S29: 00:00:00 | T29: 0 | U29: 0 | V29: 0 | W29: 0 | AB29: 0 | AC29: 0 | AL29: 15 | AQ29: 0
G30: 16 | P30: 1 | Q30: 2000-09-14T12:00:00 | S30: 00:00:00 | T30: 0 | U30: 0 | V30: 0 | W30: 0 | AB30: 0 | AC30: 0 | AL30: 16 | AQ30: 0
G31: 17 | P31: 1 | Q31: 2000-09-14T12:00:00 | S31: 00:00:00 | T31: 0 | U31: 0 | V31: 0 | W31: 0 | AB31: 0 | AC31: 0 | AL31: 17 | AQ31: 0
G32: 18 | P32: 1 | Q32: 2000-09-14T12:00:00 | S32: 00:00:00 | T32: 0 | U32: 0 | V32: 0 | W32: 0 | AB32: 0 | AC32: 0 | AL32: 18 | AQ32: 0
G33: 19 | P33: 1 | Q33: 2000-09-14T12:00:00 | S33: 00:00:00 | T33: 0 | U33: 0 | V33: 0 | W33: 0 | AB33: 0 | AC33: 0 | AL33: 19 | AQ33: 0
G34: 20 | P34: 1 | Q34: 2000-09-14T12:00:00 | S34: 00:00:00 | T34: 0 | U34: 0 | V34: 0 | W34: 0 | AB34: 0 | AC34: 0 | AL34: 20 | AQ34: 0
H35: TOTALE ACCONTI | K35: =SUM(K15:K34) -> 3000 | L35: =SUM(L15:L34) -> 0 | AM35: TOTALE ACCONTI | AO35: =SUM(AO15:AO34) -> 3000 | AP35: =SUM(AP15:AP34) -> 0 | AT35: =SUM(AT15:AT34) -> 1200 | AU35: =SUM(AU15:AU34) -> 777.7316681 | AV35: =SUM(AV15:AV34) -> 0 | AW35: =SUM(AW15:AW34) -> 0 | AX35: =SUMIF(AX15:AX34,"<>""") -> 1977.731668
AT36: IVS
AT37: IVS | AV37: SSN | AX37: TOTALE
AM38: A) | AN38: CONTRIBUZIONE DOVUTA ...........………................. | AT38: =K12 -> 36000 | AV38: =L12 -> 0 | AX38: =SUM(AT38:AV38) -> 36000
AM39: B) | AN39: ACCONTI VERSATI ……………………………….……. | AT39: =K35 -> 3000 | AV39: =L35 -> 0 | AX39: =SUM(AT39:AV39) -> 3000
AM40: C) | AN40: DEBITO RESIDUO ………………..……………………. | AT40: =AT38-AT39 -> 33000 | AV40: =AV38-AV39 -> 0 | AX40: =SUM(AT40:AV40) -> 33000
AM41: D) | AN41: SANZIONI + INTERESSI | AT41: =ROUND(AT12+AU12+AT35+AU35,) -> 26247 | AV41: =ROUND(AV12+AV35+AW12+AW35,) -> 0 | AX41: =SUM(AT41:AV41) -> 26247
AM42: TOTALE DEBITO ............................................. | AT42: =SUM(AT40:AT41) -> 59247 | AV42: =SUM(AV40:AV41) -> 0 | AX42: =SUM(AT42:AV42) -> 59247

Sheet sanzioni autonomi
F2: DITTA: | G2: PROVA
P3: 35450 | X3: INTERESSI | AD3: ditta : | AE3: =G2 -> PROVA | AH3: codice individuale : | AJ3: =G4 -> 12345678JK | AM3: 1995 | AO3: E
F4: CODICE | G4: 12345678JK | M4: E | X4: DI MORA | AM4: 1996 | AO4: M
M5: M | AD5: data calcolo: | AE5: =G6 -> 2012-01-10
F6: DATA | G6: 2012-01-10 | N6: =G6 -> 40918 | X6: =VLOOKUP($G$6,tassi,5) -> 0.05024 | AM6: 1997
F7: TIPO (E/M) | M7: MOROSITA' =1 | AD7: TIPO EVENTO : | AF7: =IF(#REF!=""," ",#REF!) ->  | AM7: 1998
F8: TASSO CORRENTE......................... | M8: EVASIONE=2 | AM8: 1999
F10: trimestre | G10: anno | H10: scadenza | I10: importo contributi | J10: e/m | K10: tasso | M10: M 1 | Q10: EVASIONE | R10: morosità | S10: MOROSITA' | T10: evasione | U10: morosità | X10: interessi | Y10: interessi | AC10: ANNO | AM10: 2000
I11: in EURO | M11: E 2 | X11: evasione | Y11: morosità | AB11: TRIM. | AC11: =G12 -> 2011 | AD11: IMPORTO | AE11: E/M | AF11: GIORNI | AG11: TASSO | AH11: SANZIONI | AI11: INTERESSI | AJ11: TOTALE
G12: 2011 | AC12: SCADENZE | AM12: 2002
F13: 1 | G13: =IF(H13=""," ",IF(H13<$H$12,"data errata"," ")) ->  | H13: =IF($G$12<1991,DATE($G$12,4,25),IF($G$12<1998,DATE($G$12,4,20),DATE($G$12,5,16))) -> 2011-05-16 | I13: 400 | J13: m | K13: =IF(I13=""," ",IF(J13="M",VLOOKUP(G6,tassi,4),VLOOKUP(G6,tassi,2))) -> 0.065 | M13: =IF($J$13="M",1,2) -> 1 | N13: =$G$6 -> 2012-01-10 | O13: =IF(H13="",0,H13) -> 2011-05-16 | P13: =IF(O13<>0,N13-O13,0) -> 239 | Q13: =IF(P13>730,P13-730,0) -> 0 | R13: =IF(M13=2,0,IF(W13=0,0,40/W13/100)) -> 2246.153846 | S13: =IF(R13=0,0,IF(P13<R13,0,P13-R13)) -> 0 | T13: =IF(P13<=0,0,IF(I13*P13*W13>0.6*I13,0.6*I13,I13*P13*W13)) -> 17.02465753 | U13: =IF(P13<=0,0,IF(I13*P13*W13>0.4*I13,0.4*I13,I13*P13*W13)) -> 17.02465753 | V13: =IF(K13=" ",0,K13) -> 0.065 | W13: =V13/365 -> 0.0001780821918 | X13: =IF(Q13>0,I13*$X$6/365*Q13,0) -> 0 | Y13: =IF(S13>0,I13*$X$6/365*S13,0) -> 0 | AB13: =F13 -> 1 | AC13: =IF(H13=""," ",H13) -> 2011-05-16 | AD13: =IF(I13>0,I13,0) -> 400 | AE13: =J13 -> m | AF13: =IF(AD13>0,INT(P13),0) -> 239 | AG13: =IF(K13=""," ",K13) -> 0.065 | AH13: =IF(M13=1,U13,T13) -> 17.02465753 | AI13: =IF(M13=1,Y13,X13) -> 0 | AJ13: =(AH13+AI13) -> 17.02465753 | AM13: 2003
F14: 2 | G14: =IF(H14=""," ",IF(H14<$H$12,"data errata"," ")) ->  | H14: =IF($G$12<1991,DATE($G$12,7,25),IF($G$12<1998,DATE($G$12,8,20),DATE($G$12,8,16))) -> 2011-08-16 | I14: 400 | J14: m | K14: =IF(I14=""," ",IF(J14="M",VLOOKUP(G6,tassi,4),VLOOKUP(G6,tassi,2))) -> 0.065 | M14: =IF($J$14="M",1,2) -> 1 | N14: 2012-01-10 | O14: 2011-08-16 | P14: 147 | Q14: 0 | R14: 2246.153846 | S14: 0 | T14: 10.47123288 | U14: 10.47123288 | V14: 0.065 | W14: 0.0001780821918 | X14: 0 | Y14: 0 | AB14: =F14 -> 2 | AC14: 2011-08-16 | AD14: 400 | AE14: m | AF14: 147 | AG14: 0.065 | AH14: 10.47123288 | AI14: 0 | AJ14: 10.47123288 | AM14: 2004
F15: 3 | G15: =IF(H15=""," ",IF(H15<$H$12,"data errata"," ")) ->  | H15: =IF($G$12<1990,DATE($G$12,10,25),IF($G$12<1998,DATE($G$12,11,20),DATE($G$12,11,16))) -> 2011-11-16 | I15: 400 | J15: m | K15: =IF(I15=""," ",IF(J15="M",VLOOKUP(G6,tassi,4),VLOOKUP(G6,tassi,2))) -> 0.065 | M15: =IF($J$15="M",1,2) -> 1 | N15: 2012-01-10 | O15: 2011-11-16 | P15: 55 | Q15: 0 | R15: 2246.153846 | S15: 0 | T15: 3.917808219 | U15: 3.917808219 | V15: 0.065 | W15: 0.0001780821918 | X15: 0 | Y15: 0 | AB15: =F15 -> 3 | AC15: 2011-11-16 | AD15: 400 | AE15: m | AF15: 55 | AG15: 0.065 | AH15: 3.917808219 | AI15: 0 | AJ15: 3.917808219 | AM15: 2005
F16: 4 | G16: =IF(H16=""," ",IF(H16<$H$12,"data errata"," ")) ->  | H16: =IF($G$12<1990,DATE($G$12+1,1,25),IF($G$12<1998,DATE($G$12+1,2,20),DATE($G$12+1,2,16))) -> 2012-02-16 | I16: 400 | J16: m | K16: =IF(I16=""," ",IF(J16="M",VLOOKUP(G6,tassi,4),VLOOKUP(G6,tassi,2))) -> 0.065 | M16: =IF($J$16="M",1,2) -> 1 | N16: 2012-01-10 | O16: 2012-02-16 | P16: -37 | Q16: 0 | R16: 2246.153846 | S16: 0 | T16: 0 | U16: 0 | V16: 0.065 | W16: 0.0001780821918 | X16: 0 | Y16: 0 | AB16: =F16 -> 4 | AC16: 2012-02-16 | AD16: 400 | AE16: m | AF16: -37 | AG16: 0.065 | AH16: 0 | AI16: 0 | AJ16: 0 | AM16: 2006
F17: % | H17: =IF($G$12<=1990,DATE($G$12,7,25),IF($G$12=1998,DATE($G$12,6,19),DATE($G$12,6,20))) -> 2011-06-20 | I17: 200 | J17: E | K17: =IF(I17=""," ",IF(J17="M",VLOOKUP(G6,tassi,4),VLOOKUP(G6,tassi,2))) -> 0.3 | M17: =IF($J$17="M",1,2) -> 2 | N17: 2012-01-10 | O17: 2011-06-20 | P17: 204 | Q17: 0 | R17: 0 | S17: 0 | T17: 33.53424658 | U17: 33.53424658 | V17: 0.3 | W17: 0.0008219178082 | X17: 0 | Y17: 0 | AB17: % | AC17: 2011-06-20 | AD17: 200 | AE17: E | AF17: 204 | AG17: 0.3 | AH17: 33.53424658 | AI17: 0 | AJ17: 33.53424658
F18: % | H18: =IF($G$12<=1990,DATE($G$12,10,25),IF($G$12=1998,DATE($G$12,11,30),DATE($G$12,11,30))) -> 2011-11-30 | I18: 100 | J18: E | K18: =IF(I18=""," ",IF(J18="M",VLOOKUP(G6,tassi,4),VLOOKUP(G6,tassi,2))) -> 0.3 | M18: =IF($J$18="M",1,2) -> 2 | N18: 2012-01-10 | O18: 2011-11-30 | P18: 41 | Q18: 0 | R18: 0 | S18: 0 | T18: 3.369863014 | U18: 3.369863014 | V18: 0.3 | W18: 0.0008219178082 | X18: 0 | Y18: 0 | AB18: % | AC18: 2011-11-30 | AD18: 100 | AE18: E | AF18: 41 | AG18: 0.3 | AH18: 3.369863014 | AI18: 0 | AJ18: 3.369863014
F19: conguaglio | K19: =IF(I19=""," ",IF(J19="M",VLOOKUP(G6,tassi,4),VLOOKUP(G6,tassi,2))) ->  | M19: =IF($J$18="M",1,2) -> 2 | N19: 2012-01-10 | O19: =IF(H19="",0,H19) -> 00:00:00 | P19: =IF(O19<>0,N19-O19,0) -> 0 | Q19: 0 | R19: =IF(M19=2,0,IF(W19=0,0,40/W19/100)) -> 0 | S19: =IF(R19=0,0,IF(P19<R19,0,P19-R19)) -> 0 | T19: =IF(P19<=0,0,IF(I19*P19*W19>0.6*I19,0.6*I19,I19*P19*W19)) -> 0 | U19: =IF(P19<=0,0,IF(I19*P19*W19>0.4*I19,0.4*I19,I19*P19*W19)) -> 0 | V19: =IF(K19=" ",0,K19) -> 0 | W19: 0 | X19: =IF(Q19>0,I19*$X$6/365*Q19,0) -> 0 | Y19: =IF(S19>0,I19*$X$6/365*S19,0) -> 0 | AB19: cong. | AC19: =IF(H19=""," ",H19) ->  | AD19: =IF(I19>0,I19,0) -> 0 | AE19: =J19 -> 0 | AF19: =IF(AD19>0,INT(P19),0) -> 0 | AG19: =IF(K19=""," ",K19) ->  | AH19: =IF(M19=1,U19,T19) -> 0 | AI19: =IF(M19=1,Y19,X19) -> 0 | AJ19: =(AH19+AI19) -> 0
G20: TOTALE | I20: =SUM(I13:I18) -> 1900 | AC20: TOTALE | AD20: =SUM(AD13:AD19) -> 1900 | AH20: =(SUM(AH13:AH19)) -> 68.31780822 | AI20: =(SUM(AI13:AI19)) -> 0 | AJ20: =(SUM(AJ13:AJ19)) -> 68.31780822
AH21: IVS
AH22: IN EURO | AI22: IN LIRE
AC23: A) | AD23: TOTALE CONTRIBUTI | AH23: =(AD20) -> 1900 | AI23: =ROUND(AH23*1936.27,-3) -> 3679000
AC24: B) | AD24: TOTALE SANZIONI | AH24: =ROUND(AH20,) -> 68 | AI24: =ROUND(AH24*1936.27,-3) -> 132000
AC25: C) | AD25: TOTALE INTERESSI DI MORA | AH25: =ROUND(AI20,) -> 0 | AI25: =ROUND(AH25*1936.27,-3) -> 0
AC26: D) | AD26: TOTALE SANZIONI + INTERESSI | AH26: =AH24+AH25 -> 68 | AI26: =ROUND(AH26*1936.27,-3) -> 132000
AC27: TOTALE DEBITO ............................................. | AH27: =AH23+AH26 -> 1968 | AI27: =ROUND(AH27*1936.27,-3) -> 3811000

Sheet sanzioniCDCM
G3: CALCOLO SANZIONI L.388/2000
G7: DITTA: | H7: Prova | AH7: CALCOLO SANZIONI L.388/2000
Q8: 35450 | Y8: INTERESSI | AP8: 1995 | AR8: E
G9: CODICE | H9: 12345678AB | N9: E | Y9: DI MORA | AG9: ditta : | AH9: =H7 -> Prova | AK9: codice individuale : | AM9: =H9 -> 12345678AB | AP9: 1996 | AR9: M
N10: M
G11: DATA | H11: 2015-01-12 | J11: CD/CM | O11: =H11 -> 42016 | Y11: =VLOOKUP($H$11,tassi,5) -> 0.0514 | AG11: data calcolo: | AH11: =H11 -> 2015-01-12 | AP11: 1997
G12: TIPO (E/M) | N12: MOROSITA' =1 | AG12: TIPO EVENTO : | AI12: =IF(#REF!=""," ",#REF!) ->  | AP12: 1998
G13: TASSO CORRENTE......................... | N13: EVASIONE=2 | AP13: 1999
G15: trimestre | H15: anno | I15: scadenza | J15: importo contributi | K15: e/m | L15: tasso | N15: M 1 | R15: EVASIONE | S15: morosità | T15: MOROSITA' | U15: evasione | V15: morosità | Y15: interessi | Z15: interessi | AF15: ANNO | AP15: 2000
N16: E 2 | Y16: evasione | Z16: morosità | AE16: TRIM. | AF16: =H17 -> 2012 | AG16: IMPORTO | AH16: E/M | AI16: GIORNI | AJ16: TASSO | AK16: SANZIONI | AL16: INTERESSI | AM16: TOTALE
H17: 2012 | AF17: SCADENZE | AP17: 2002
G18: 1 | I18: =VLOOKUP(H17,scadenze,6) -> 2012-07-16 | J18: 340 | K18: E | L18: =IF(J18=""," ",IF(K18="M",VLOOKUP(H11,tassi,4),VLOOKUP(H11,tassi,2))) -> 0.3 | N18: =IF(K18="M",1,2) -> 2 | O18: =$H$11 -> 2015-01-12 | P18: =IF(I18="",0,I18) -> 2012-07-16 | Q18: =IF(P18<>0,O18-P18,0) -> 910 | R18: =IF(Q18>730,Q18-730,0) -> 180 | S18: =IF(N18=2,0,IF(X18=0,0,40/X18/100)) -> 0 | T18: =IF(S18=0,0,IF(Q18<S18,0,Q18-S18)) -> 0 | U18: =IF(Q18<=0,0,IF(J18*Q18*X18>0.6*J18,0.6*J18,J18*Q18*X18)) -> 204 | V18: =IF(Q18<=0,0,IF(J18*Q18*X18>0.4*J18,0.4*J18,J18*Q18*X18)) -> 136 | W18: =IF(L18=" ",0,L18) -> 0.3 | X18: =W18/365 -> 0.0008219178082 | Y18: =IF(R18>0,J18*$Y$11/365*R18,0) -> 8.61830137 | Z18: =IF(T18>0,J18*$Y$11/365*T18,0) -> 0 | AE18: =G18 -> 1 | AF18: =IF(I18=""," ",I18) -> 2012-07-16 | AG18: =IF(J18>0,J18,0) -> 340 | AH18: =K18 -> E | AI18: =IF(AG18>0,INT(Q18),0) -> 910 | AJ18: =IF(L18=""," ",L18) -> 0.3 | AK18: =IF(N18=1,V18,U18) -> 204 | AL18: =IF(N18=1,Z18,Y18) -> 8.61830137 | AM18: =ROUND(AK18+AL18,) -> 213 | AP18: 2003
G19: 2 | I19: =VLOOKUP(H17,scadenze,7) -> 2012-09-16 | L19: =IF(J19=""," ",IF(K19="M",VLOOKUP(H11,tassi,4),VLOOKUP(H11,tassi,2))) ->  | N19: =IF(K19="M",1,2) -> 2 | O19: =$H$11 -> 2015-01-12 | P19: =IF(I19="",0,I19) -> 2012-09-16 | Q19: =IF(P19<>0,O19-P19,0) -> 848 | R19: =IF(Q19>730,Q19-730,0) -> 118 | S19: =IF(N19=2,0,IF(X19=0,0,40/X19/100)) -> 0 | T19: =IF(S19=0,0,IF(Q19<S19,0,Q19-S19)) -> 0 | U19: =IF(Q19<=0,0,IF(J19*Q19*X19>0.6*J19,0.6*J19,J19*Q19*X19)) -> 0 | V19: =IF(Q19<=0,0,IF(J19*Q19*X19>0.4*J19,0.4*J19,J19*Q19*X19)) -> 0 | W19: =IF(L19=" ",0,L19) -> 0 | X19: =W19/365 -> 0 | Y19: =IF(R19>0,J19*$Y$11/365*R19,0) -> 0 | Z19: =IF(T19>0,J19*$Y$11/365*T19,0) -> 0 | AE19: =G19 -> 2 | AF19: =IF(I19=""," ",I19) -> 2012-09-16 | AG19: =IF(J19>0,J19,0) -> 0 | AH19: =K19 -> 0 | AI19: =IF(AG19>0,INT(Q19),0) -> 0 | AJ19: =IF(L19=""," ",L19) ->  | AK19: =IF(N19=1,V19,U19) -> 0 | AL19: =IF(N19=1,Z19,Y19) -> 0 | AM19: =ROUND(AK19+AL19,) -> 0 | AP19: 2004
G20: 3 | I20: =VLOOKUP(H17,scadenze,8) -> 2012-11-16 | L20: =IF(J20=""," ",IF(K20="M",VLOOKUP(H11,tassi,4),VLOOKUP(H11,tassi,2))) ->  | N20: =IF(K20="M",1,2) -> 2 | O20: =$H$11 -> 2015-01-12 | P20: =IF(I20="",0,I20) -> 2012-11-16 | Q20: =IF(P20<>0,O20-P20,0) -> 787 | R20: =IF(Q20>730,Q20-730,0) -> 57 | S20: =IF(N20=2,0,IF(X20=0,0,40/X20/100)) -> 0 | T20: =IF(S20=0,0,IF(Q20<S20,0,Q20-S20)) -> 0 | U20: =IF(Q20<=0,0,IF(J20*Q20*X20>0.6*J20,0.6*J20,J20*Q20*X20)) -> 0 | V20: =IF(Q20<=0,0,IF(J20*Q20*X20>0.4*J20,0.4*J20,J20*Q20*X20)) -> 0 | W20: =IF(L20=" ",0,L20) -> 0 | X20: =W20/365 -> 0 | Y20: =IF(R20>0,J20*$Y$11/365*R20,0) -> 0 | Z20: =IF(T20>0,J20*$Y$11/365*T20,0) -> 0 | AE20: =G20 -> 3 | AF20: =IF(I20=""," ",I20) -> 2012-11-16 | AG20: =IF(J20>0,J20,0) -> 0 | AH20: =K20 -> 0 | AI20: =IF(AG20>0,INT(Q20),0) -> 0 | AJ20: =IF(L20=""," ",L20) ->  | AK20: =IF(N20=1,V20,U20) -> 0 | AL20: =IF(N20=1,Z20,Y20) -> 0 | AM20: =ROUND(AK20+AL20,) -> 0 | AP20: 2005
G21: 4 | I21: =VLOOKUP(H17,scadenze,9) -> 2013-01-16 | L21: =IF(J21=""," ",IF(K21="M",VLOOKUP(H11,tassi,4),VLOOKUP(H11,tassi,2))) ->  | N21: =IF(K21="M",1,2) -> 2 | O21: =$H$11 -> 2015-01-12 | P21: =IF(I21="",0,I21) -> 2013-01-16 | Q21: =IF(P21<>0,O21-P21,0) -> 726 | R21: =IF(Q21>730,Q21-730,0) -> 0 | S21: =IF(N21=2,0,IF(X21=0,0,40/X21/100)) -> 0 | T21: =IF(S21=0,0,IF(Q21<S21,0,Q21-S21)) -> 0 | U21: =IF(Q21<=0,0,IF(J21*Q21*X21>0.6*J21,0.6*J21,J21*Q21*X21)) -> 0 | V21: =IF(Q21<=0,0,IF(J21*Q21*X21>0.4*J21,0.4*J21,J21*Q21*X21)) -> 0 | W21: =IF(L21=" ",0,L21) -> 0 | X21: =W21/365 -> 0 | Y21: =IF(R21>0,J21*$Y$11/365*R21,0) -> 0 | Z21: =IF(T21>0,J21*$Y$11/365*T21,0) -> 0 | AE21: =G21 -> 4 | AF21: =IF(I21=""," ",I21) -> 2013-01-16 | AG21: =IF(J21>0,J21,0) -> 0 | AH21: =K21 -> 0 | AI21: =IF(AG21>0,INT(Q21),0) -> 0 | AJ21: =IF(L21=""," ",L21) ->  | AK21: =IF(N21=1,V21,U21) -> 0 | AL21: =IF(N21=1,Z21,Y21) -> 0 | AM21: =ROUND(AK21+AL21,) -> 0 | AP21: 2006
H22: TOTALE | J22: =SUM(J18:J21) -> 340 | AF22: TOTALE | AG22: =SUM(AG18:AG21) -> 340 | AK22: =SUM(AK18:AK21) -> 204 | AL22: =SUM(AL18:AL21) -> 8.61830137 | AM22: =ROUND(AK22+AL22,) -> 213
G25: =IF(H17=1998,"N.B. LE SCADENZE SONO RELATIVE AI TITOLARI DI PARTITA IVA","") -> 
AF26: A) | AG26: TOTALE CONTRIBUTI | AK26: =ROUND(AG22,) -> 340
AF27: B) | AG27: TOTALE SANZIONI | AK27: =ROUND(AK22,) -> 204
AF28: C) | AG28: TOTALE INTERESSI DI MORA | AK28: =ROUND(AL22,) -> 9
AF29: D) | AG29: TOTALE SANZIONI + INTERESSI | AK29: =AM22 -> 213
AF30: TOTALE DEBITO ............................................. | AK30: =AK26+AK29 -> 553

Sheet sanzioni agricoli
F4: CALCOLO SANZIONI L.388/2000
F6: DITTA: | G6: PROVA | AE6: CALCOLO SANZIONI L.388/2000
P7: 35450 | X7: INTERESSI | AM7: 1995 | AO7: E
F8: MATRICOLA | G8: 8100000081 | M8: E | X8: DI MORA | AD8: ditta : | AE8: =G6 -> PROVA | AI8: matricola: | AJ8: =G8 -> 8100000081 | AM8: 1996 | AO8: M
M9: M
F10: DATA | G10: 2012-01-10 | I10: AGRICOLI | N10: =G10 -> 40918 | X10: =VLOOKUP($G$10,tassi,5) -> 0.05024 | AD10: data calcolo: | AE10: =G10 -> 2012-01-10 | AM10: 1997
F11: TIPO (E/M) | M11: MOROSITA' =1 | AD11: TIPO EVENTO : | AF11: =IF(#REF!=""," ",#REF!) ->  | AM11: 1998
F12: TASSO CORRENTE......................... | M12: EVASIONE=2 | AM12: 1999
F14: trimestre | G14: anno | H14: scadenza | I14: importo | J14: e/m | K14: tasso | M14: M 1 | N14: data calcolo | O14: scadenza | P14: giorni | Q14: EVASIONE | R14: morosità | S14: MOROSITA' | T14: evasione | U14: morosità | X14: interessi | Y14: interessi | AC14: ANNO | AM14: 2000
I15: contributi | M15: E 2 | X15: evasione | Y15: morosità | AB15: TRIM. | AC15: =G16 -> 2011 | AD15: IMPORTO | AE15: E/M | AF15: GIORNI | AG15: TASSO | AH15: SANZIONI | AI15: INTERESSI | AJ15: TOTALE
G16: 2011 | AC16: SCADENZE | AM16: 2002
F17: 1 | H17: =VLOOKUP(G16,scadenze,2) -> 2011-09-16 | I17: 300 | J17: M | K17: =IF(I17=""," ",IF(J17="M",VLOOKUP(G10,tassi,4),VLOOKUP(G10,tassi,2))) -> 0.065 | M17: =IF(J17="M",1,2) -> 1 | N17: =$G$10 -> 2012-01-10 | O17: =IF(H17="",0,H17) -> 2011-09-16 | P17: =IF(O17<>0,N17-O17,0) -> 116 | Q17: =IF(P17>730,P17-730,0) -> 0 | R17: =IF(M17=2,0,IF(W17=0,0,40/W17/100)) -> 2246.153846 | S17: =IF(R17=0,0,IF(P17<R17,0,P17-R17)) -> 0 | T17: =IF(P17<=0,0,IF(I17*P17*W17>0.6*I17,0.6*I17,I17*P17*W17)) -> 6.197260274 | U17: =IF(P17<=0,0,IF(I17*P17*W17>0.4*I17,0.4*I17,I17*P17*W17)) -> 6.197260274 | V17: =IF(K17=" ",0,K17) -> 0.065 | W17: =V17/365 -> 0.0001780821918 | X17: =IF(Q17>0,I17*$X$10/365*Q17,0) -> 0 | Y17: =IF(S17>0,I17*$X$10/365*S17,0) -> 0 | AB17: =F17 -> 1 | AC17: =IF(H17=""," ",H17) -> 2011-09-16 | AD17: =IF(I17>0,I17,0) -> 300 | AE17: =J17 -> M | AF17: =IF(AD17>0,INT(P17),0) -> 116 | AG17: =IF(K17=""," ",K17) -> 0.065 | AH17: =IF(M17=1,U17,T17) -> 6.197260274 | AI17: =IF(M17=1,Y17,X17) -> 0 | AJ17: =ROUND(AH17+AI17,) -> 6 | AM17: 2003
F18: 2 | H18: =VLOOKUP(G16,scadenze,3) -> 2011-12-16 | K18: =IF(I18=""," ",IF(J18="M",VLOOKUP(G10,tassi,4),VLOOKUP(G10,tassi,2))) ->  | M18: =IF(J18="M",1,2) -> 2 | N18: =$G$10 -> 2012-01-10 | O18: =IF(H18="",0,H18) -> 2011-12-16 | P18: =IF(O18<>0,N18-O18,0) -> 25 | Q18: =IF(P18>730,P18-730,0) -> 0 | R18: =IF(M18=2,0,IF(W18=0,0,40/W18/100)) -> 0 | S18: =IF(R18=0,0,IF(P18<R18,0,P18-R18)) -> 0 | T18: =IF(P18<=0,0,IF(I18*P18*W18>0.6*I18,0.6*I18,I18*P18*W18)) -> 0 | U18: =IF(P18<=0,0,IF(I18*P18*W18>0.4*I18,0.4*I18,I18*P18*W18)) -> 0 | V18: =IF(K18=" ",0,K18) -> 0 | W18: =V18/365 -> 0 | X18: =IF(Q18>0,I18*$X$10/365*Q18,0) -> 0 | Y18: =IF(S18>0,I18*$X$10/365*S18,0) -> 0 | AB18: =F18 -> 2 | AC18: =IF(H18=""," ",H18) -> 2011-12-16 | AD18: =IF(I18>0,I18,0) -> 0 | AE18: =J18 -> 0 | AF18: =IF(AD18>0,INT(P18),0) -> 0 | AG18: =IF(K18=""," ",K18) ->  | AH18: =IF(M18=1,U18,T18) -> 0 | AI18: =IF(M18=1,Y18,X18) -> 0 | AJ18: =ROUND(AH18+AI18,) -> 0 | AM18: 2004
F19: 3 | H19: =VLOOKUP(G16,scadenze,4) -> 2012-03-16 | K19: =IF(I19=""," ",IF(J19="M",VLOOKUP(G10,tassi,4),VLOOKUP(G10,tassi,2))) ->  | M19: =IF(J19="M",1,2) -> 2 | N19: =$G$10 -> 2012-01-10 | O19: =IF(H19="",0,H19) -> 2012-03-16 | P19: =IF(O19<>0,N19-O19,0) -> -66 | Q19: =IF(P19>730,P19-730,0) -> 0 | R19: =IF(M19=2,0,IF(W19=0,0,40/W19/100)) -> 0 | S19: =IF(R19=0,0,IF(P19<R19,0,P19-R19)) -> 0 | T19: =IF(P19<=0,0,IF(I19*P19*W19>0.6*I19,0.6*I19,I19*P19*W19)) -> 0 | U19: =IF(P19<=0,0,IF(I19*P19*W19>0.4*I19,0.4*I19,I19*P19*W19)) -> 0 | V19: =IF(K19=" ",0,K19) -> 0 | W19: =V19/365 -> 0 | X19: =IF(Q19>0,I19*$X$10/365*Q19,0) -> 0 | Y19: =IF(S19>0,I19*$X$10/365*S19,0) -> 0 | AB19: =F19 -> 3 | AC19: =IF(H19=""," ",H19) -> 2012-03-16 | AD19: =IF(I19>0,I19,0) -> 0 | AE19: =J19 -> 0 | AF19: =IF(AD19>0,INT(P19),0) -> 0 | AG19: =IF(K19=""," ",K19) ->  | AH19: =IF(M19=1,U19,T19) -> 0 | AI19: =IF(M19=1,Y19,X19) -> 0 | AJ19: =ROUND(AH19+AI19,) -> 0 | AM19: 2005
F20: 4 | H20: =VLOOKUP(G16,scadenze,5) -> 2012-06-16 | K20: =IF(I20=""," ",IF(J20="M",VLOOKUP(G10,tassi,4),VLOOKUP(G10,tassi,2))) ->  | M20: =IF(J20="M",1,2) -> 2 | N20: =$G$10 -> 2012-01-10 | O20: =IF(H20="",0,H20) -> 2012-06-16 | P20: =IF(O20<>0,N20-O20,0) -> -158 | Q20: =IF(P20>730,P20-730,0) -> 0 | R20: =IF(M20=2,0,IF(W20=0,0,40/W20/100)) -> 0 | S20: =IF(R20=0,0,IF(P20<R20,0,P20-R20)) -> 0 | T20: =IF(P20<=0,0,IF(I20*P20*W20>0.6*I20,0.6*I20,I20*P20*W20)) -> 0 | U20: =IF(P20<=0,0,IF(I20*P20*W20>0.4*I20,0.4*I20,I20*P20*W20)) -> 0 | V20: =IF(K20=" ",0,K20) -> 0 | W20: =V20/365 -> 0 | X20: =IF(Q20>0,I20*$X$10/365*Q20,0) -> 0 | Y20: =IF(S20>0,I20*$X$10/365*S20,0) -> 0 | AB20: =F20 -> 4 | AC20: =IF(H20=""," ",H20) -> 2012-06-16 | AD20: =IF(I20>0,I20,0) -> 0 | AE20: =J20 -> 0 | AF20: =IF(AD20>0,INT(P20),0) -> 0 | AG20: =IF(K20=""," ",K20) ->  | AH20: =IF(M20=1,U20,T20) -> 0 | AI20: =IF(M20=1,Y20,X20) -> 0 | AJ20: =ROUND(AH20+AI20,) -> 0 | AM20: 2006
G21: TOTALE | I21: =SUM(I17:I20) -> 300 | AC21: TOTALE | AD21: =SUM(AD17:AD20) -> 300 | AH21: =SUM(AH17:AH20) -> 6.197260274 | AI21: =SUM(AI17:AI20) -> 0 | AJ21: =ROUND(AH21+AI21,) -> 6
AH22: IVS
F25: =IF(G16=1998,"N.B. LE SCADENZE SONO RELATIVE AI TITOLARI DI PARTITA IVA","") ->  | AC25: A) | AD25: TOTALE CONTRIBUTI | AH25: =ROUND(AD21,) -> 300
AC26: B) | AD26: TOTALE SANZIONI | AH26: =ROUND(AH21,) -> 6
AC27: C) | AD27: TOTALE INTERESSI DI MORA | AH27: =ROUND(AI21,) -> 0
AC28: D) | AD28: TOTALE SANZIONI + INTERESSI | AH28: =AJ21 -> 6
AC29: TOTALE DEBITO ............................................. | AH29: =AH25+AH28 -> 306

Sheet sanzfallimenti
E1: DITTA: | F1: prova | AM1: =IF(#REF!="e1",1,IF(#REF!="e2",1,IF(#REF!="e3",1,2))) ->  | AY1: CALCOLO SANZIONI AZIENDE
T2: 35450 | AF2: INTERESSI | AM2: =IF(#REF!="e1",1,IF(#REF!="e2",1,IF(#REF!="e3",1,2))) ->  | AT2: data apertura fallimento: | AW2: =O3 -> 1999-02-08 | BI2: 1995 | BK2: E
E3: MATRICOLA | G3: 8100000081 | J3: VIG N° | K3: 1230 | M3: data apertura fallimento | O3: 1999-02-08 | R3: E | AF3: DI MORA | AM3: =IF(#REF!="e1",1,IF(#REF!="e2",1,IF(#REF!="e3",1,2))) ->  | AT3: data chiusura fallimento: | AW3: =O5 -> 2010-04-15 | AZ3: matricola: | BA3: =G3 -> 8100000081 | BI3: 1996 | BK3: M
R4: M | AV4: data calcolo: | AW4: =$F$5 -> 2013-10-14 | AZ4: ditta: | BA4: =IF(F1=""," ",F1) -> prova | BE4: vig: | BF4: =IF($K$3=""," ",$K$3) -> 1230
E5: DATA | F5: 2013-10-14 | M5: data chiusura fallimento | O5: 2010-04-15 | Q5: =F5 -> 41561 | AF5: =VLOOKUP($F$5,tassi,5) -> 0.05223 | AM5: =IF(#REF!="e1",1,IF(#REF!="e2",1,IF(#REF!="e3",1,2))) ->  | BI5: 1997
E6: TIPO (E/M) | G6: m | J6: EURO | K6: EURO | P6: MOROSITA' =1 | AM6: =IF(#REF!="e1",1,IF(#REF!="e2",1,IF(#REF!="e3",1,2))) ->  | AV6: TIPO EVENTO : | AW6: =IF($G$6="M","MOROSITA'","EVASIONE") -> MOROSITA' | AY6: N° Matricola ........….: | BA6: =IF($G$3=""," ",$G$3) -> 8100000081 | BI6: 1998
E7: TASSO CORRENTE......................... | J7: EURO | K7: EURO | P7: EVASIONE=2 | AM7: =IF(#REF!="e1",1,IF(#REF!="e2",1,IF(#REF!="e3",1,2))) ->  | BI7: 1999
J8: EURO | K8: EURO | W8: EVASIONE | X8: morosità | Y8: MOROSITA' | Z8: IVS | AA8: IVS | AB8: SSN | AC8: SSN | AF8: IVS | AG8: SSN | AH8: IVS | AI8: SSN | AM8: =IF(#REF!="e1",1,IF(#REF!="e2",1,IF(#REF!="e3",1,2))) ->  | AR8: N. | AS8: ANNO | AT8: MESE | AU8: MESE | AV8: IMPORTO | AW8: IMPORTO | AX8: EVAS. | AY8: TASSO | AZ8: DATA | BA8: GG | BB8: SANZIONI | BC8: INTERESSI | BD8: SANZIONI | BE8: INTERESSI | BF8: TOTALE | BI8: 2000
E9: N. | F9: Anno | G9: INIZIO | H9: FINE | I9: Controllo data | J9: IMPORTO CONTRIBUTI IVS | K9: IMPORTO CONTRIBUTI SSN | L9: TIPO E/M | M9: TASSO | N9: giorni totali | O9: giorni interessi di mora | P9: flag morosità | Q9: DATA1 | R9: DATA2 | S9: MEDIA | T9: GIORNI TOT. | U9: giorni fallimento | V9: differenza | W9: GIORNIxINT. | X9: giorni x 40% | Y9: GIORNIxINT. | Z9: SANZIONI EVASIONE | AA9: SANZIONI MOROSITA' | AB9: SANZIONI EVASIONE | AC9: SANZIONI MOROSITA' | AD9: TASSO | AE9: TASSO/GIORNI | AF9: INT. EVASIONE | AG9: INT.EVASIONE | AH9: INT. MOROSITA' | AI9: INT. MOROSITA' | AJ9: C | AM9: =IF(#REF!="e1",1,IF(#REF!="e2",1,IF(#REF!="e3",1,2))) ->  | AT9: INIZIO | AU9: FINE | AV9: CONTRIBUTI IVS in EURO | AW9: CONTRIBUTI SSN in EURO | AX9: MOR. | AY9: % | AZ9: VALUTA | BB9: Legge 388/00 IVS | BC9: DI MORA | BD9: Legge 388/00 SSN | BE9: DI MORA | BF9: SANZIONI | BI9: 2001
E10: 1 | F10: 1998 | G10: 12 | H10: 12 | I10: =IF(F10=0," ",IF(H10<G10,"data errata",IF($F$5<AZ10,"data errata","OK"))) -> OK | J10: 5000 | L10: e | M10: =IF(L10=""," ",IF(L10="M",VLOOKUP($F$5,tassi,4),VLOOKUP($F$5,tassi,2))) -> 0.3 | N10: =IF(L10="","",V10) -> 1302 | O10: =IF(L10="","",IF(L10="E",W10,Y10)) -> 572 | P10: =IF(L10="M",1,2) -> 2 | Q10: =IF(G10=0,0,IF(F10<1998,DATE(F10,G10+1,20),IF(AND(F10=1998,G10<4),DATE(F10,G10+1,20),IF(F10>1998,DATE(F10,G10+1,16),DATE(F10,G10+1,15))))) -> 1999-01-15 | R10: =IF(H10=0,0,IF(F10<1998,DATE(F10,H10+1,20),IF(AND(F10=1998,H10<4),DATE(F10,H10+1,20),IF(F10>1998,DATE(F10,H10+1,16),DATE(F10,H10+1,15))))) -> 1999-01-15 | S10: =AVERAGE(Q10,R10) -> 1999-01-15 | T10: =IF(S10<>0,$Q$5-S10,0) -> 5386 | U10: =$O$5-$O$3 -> 4084 | V10: =T10-U10 -> 1302 | W10: =IF(V10>730,V10-730,0) -> 572 | X10: =IF(P10=2,0,40/AE10/100) -> 0 | Y10: =IF(X10=0,0,IF(V10<X10,0,V10-X10)) -> 0 | Z10: =IF(T10<=0,"",IF(J10*T10*AE10>0.6*J10,0.6*J10,J10*T10*AE10)) -> 3000 | AA10: =IF(T10<=0,"",IF(J10*T10*AE10>0.4*J10,0.4*J10,J10*T10*AE10)) -> 2000 | AB10: =IF(T10<=0,"",IF(K10*T10*AE10>0.6*K10,0.6*K10,K10*T10*AE10)) -> 0 | AC10: =IF(T10<=0,"",IF(K10*T10*AE10>0.4*K10,0.4*K10,K10*T10*AE10)) -> 0 | AD10: =M10 -> 0.3 | AE10: =AD10/365 -> 0.0008219178082 | AF10: =IF(W10>0,J10*$AF$5/365*W10,"") -> 409.2542466 | AG10: =IF(W10>0,K10*$AF$5/365*W10,"") -> 0 | AH10: =IF(Y10>0,J10*$AF$5/365*Y10,"") ->  | AI10: =IF(Y10>0,K10*$AF$5/365*Y10,"") ->  | AJ10: =90*360+12*30+15 -> 32775 | AM10: =IF(#REF!="e1",1,IF(#REF!="e2",1,IF(#REF!="e3",1,2))) ->  | AR10: =E10 -> 1 | AS10: =IF(F10>0,F10,"") -> 1998 | AT10: =IF(G10>0,G10,"") -> 12 | AU10: =IF(H10>0,H10,"") -> 12 | AV10: =IF(J10>0,J10,"") -> 5000 | AW10: =IF(K10>0,K10,"") ->  | AX10: =L10 -> e | AY10: =IF(OR(J10>0,K10>0),AD10," ") -> 0.3 | AZ10: =IF(F10>0,S10," ") -> 1999-01-15 | BA10: =IF(S10>0,INT(V10),"") -> 1302 | BB10: =IF(P10=1,AA10,Z10) -> 3000 | BC10: =IF(P10=1,AH10,AF10) -> 409.2542466 | BD10: =IF(P10=1,AC10,AB10) -> 0 | BE10: =IF(P10=1,AI10,AG10) -> 0 | BF10: =IF(T10=0,"",SUMIF(BB10:BE10,"<>""")) -> 3409.254247 | BI10: 2002
E11: 2 | F11: 1999 | G11: 1 | H11: 1 | I11: OK | J11: 21000 | L11: e | M11: 0.3 | N11: 1270 | O11: =IF(L11="","",IF(L11="E",W11,Y11)) -> 540 | P11: 2 | Q11: 1999-02-16 | R11: 1999-02-16 | S11: 1999-02-16 | T11: 5354 | U11: =$O$5-$O$3 -> 4084 | V11: =T11-U11 -> 1270 | W11: =IF(V11>730,V11-730,0) -> 540 | X11: 0 | Y11: =IF(X11=0,0,IF(V11<X11,0,V11-X11)) -> 0 | Z11: 12600 | AA11: 8400 | AB11: 0 | AC11: 0 | AD11: 0.3 | AE11: 0.0008219178082 | AF11: 1622.707397 | AG11: 0 | AJ11: 32775 | AM11: =IF(#REF!="e1",1,IF(#REF!="e2",1,IF(#REF!="e3",1,2))) ->  | AR11: 2 | AS11: 1999 | AT11: 1 | AU11: 1 | AV11: 21000 | AX11: e | AY11: 0.3 | AZ11: 1999-02-16 | BA11: =IF(S11>0,INT(V11),"") -> 1270 | BB11: 12600 | BC11: 1622.707397 | BD11: 0 | BE11: 0 | BF11: 14222.7074 | BI11: 2003
E12: 3 | O12: =IF(L12="","",IF(L12="E",W12,Y12)) ->  | P12: 2 | Q12: 00:00:00 | R12: 00:00:00 | S12: 00:00:00 | T12: 0 | U12: 4084 | V12: -4084 | W12: 0 | X12: 0 | Y12: 0 | AJ12: 32775 | AM12: =IF(#REF!="e1",1,IF(#REF!="e2",1,IF(#REF!="e3",1,2))) ->  | AR12: 3 | AX12: 0 | BA12: =IF(S12>0,INT(V12),"") ->  | BI12: 2004
E13: 4 | P13: 2 | Q13: 00:00:00 | R13: 00:00:00 | S13: 00:00:00 | T13: 0 | U13: 4084 | V13: -4084 | W13: 0 | X13: 0 | Y13: 0 | AJ13: 32775 | AM13: =IF(#REF!="e1",1,IF(#REF!="e2",1,IF(#REF!="e3",1,2))) ->  | AR13: 4 | AX13: 0 | BI13: 2005
E14: 5 | P14: 2 | Q14: 00:00:00 | R14: 00:00:00 | S14: 00:00:00 | T14: 0 | U14: 4084 | V14: -4084 | W14: 0 | X14: 0 | Y14: 0 | AJ14: 32775 | AL14: La data è quella in cui si | AM14: =IF(#REF!="e1",1,IF(#REF!="e2",1,IF(#REF!="e3",1,2))) ->  | AR14: 5 | AX14: 0 | BI14: 2006
E15: 6 | P15: 2 | Q15: 00:00:00 | R15: 00:00:00 | S15: 00:00:00 | T15: 0 | U15: 4084 | V15: -4084 | W15: 0 | X15: 0 | Y15: 0 | AJ15: 32775 | AL15: effettua il calcolo | AM15: =IF(#REF!="e1",1,IF(#REF!="e2",1,IF(#REF!="e3",1,2))) ->  | AR15: 6 | AX15: 0 | BI15: 2007
E16: 7 | P16: 2 | Q16: 00:00:00 | R16: 00:00:00 | S16: 00:00:00 | T16: 0 | U16: 4084 | V16: -4084 | W16: 0 | X16: 0 | Y16: 0 | AJ16: 32775 | AM16: =IF(#REF!="e1",1,IF(#REF!="e2",1,IF(#REF!="e3",1,2))) ->  | AR16: 7 | AX16: 0 | BI16: 2008
E17: 8 | P17: 2 | Q17: 00:00:00 | R17: 00:00:00 | S17: 00:00:00 | T17: 0 | U17: 4084 | V17: -4084 | W17: 0 | X17: 0 | Y17: 0 | AJ17: 32775 | AL17: L'importo dei contributi | AM17: =IF(#REF!="e1",1,IF(#REF!="e2",1,IF(#REF!="e3",1,2))) ->  | AR17: 8 | AX17: 0 | BI17: 2009
E18: 9 | P18: 2 | Q18: 00:00:00 | R18: 00:00:00 | S18: 00:00:00 | T18: 0 | U18: 4084 | V18: -4084 | W18: 0 | X18: 0 | Y18: 0 | AJ18: 32775 | AL18: è espresso in EURO | AM18: =IF(#REF!="e1",1,IF(#REF!="e2",1,IF(#REF!="e3",1,2))) ->  | AR18: 9 | AX18: 0 | BI18: 2010
E19: 10 | P19: 2 | Q19: 00:00:00 | R19: 00:00:00 | S19: 00:00:00 | T19: 0 | U19: 4084 | V19: -4084 | W19: 0 | X19: 0 | Y19: 0 | AJ19: 32775 | AM19: =IF(#REF!="e1",1,IF(#REF!="e2",1,IF(#REF!="e3",1,2))) ->  | AR19: 10 | AX19: 0
E20: 11 | P20: 2 | Q20: 00:00:00 | R20: 00:00:00 | S20: 00:00:00 | T20: 0 | U20: 4084 | V20: -4084 | W20: 0 | X20: 0 | Y20: 0 | AJ20: 32775 | AM20: =IF(#REF!="e1",1,IF(#REF!="e2",1,IF(#REF!="e3",1,2))) ->  | AR20: 11 | AX20: 0
E21: 12 | P21: 2 | Q21: 00:00:00 | R21: 00:00:00 | S21: 00:00:00 | T21: 0 | U21: 4084 | V21: -4084 | W21: 0 | X21: 0 | Y21: 0 | AJ21: 32775 | AL21: Il programma è utilizzabile per | AM21: =IF(#REF!="e1",1,IF(#REF!="e2",1,IF(#REF!="e3",1,2))) ->  | AR21: 12 | AX21: 0
E22: 13 | P22: 2 | Q22: 00:00:00 | R22: 00:00:00 | S22: 00:00:00 | T22: 0 | U22: 4084 | V22: -4084 | W22: 0 | X22: 0 | Y22: 0 | AJ22: 32775 | AL22: calcolare le sanzioni secondo | AM22: =IF(#REF!="e1",1,IF(#REF!="e2",1,IF(#REF!="e3",1,2))) ->  | AR22: 13 | AX22: 0
E23: 14 | P23: 2 | Q23: 00:00:00 | R23: 00:00:00 | S23: 00:00:00 | T23: 0 | U23: 4084 | V23: -4084 | W23: 0 | X23: 0 | Y23: 0 | AJ23: 32775 | AL23: quanto disposto dalla legge | AM23: =IF(#REF!="e1",1,IF(#REF!="e2",1,IF(#REF!="e3",1,2))) ->  | AR23: 14 | AX23: 0
E24: 15 | P24: 2 | Q24: 00:00:00 | R24: 00:00:00 | S24: 00:00:00 | T24: 0 | U24: 4084 | V24: -4084 | W24: 0 | X24: 0 | Y24: 0 | AJ24: 32775 | AL24: finanziaria 2001 (l. 388/00) | AM24: =IF(#REF!="e1",1,IF(#REF!="e2",1,IF(#REF!="e3",1,2))) ->  | AR24: 15 | AX24: 0
E25: 16 | P25: 2 | Q25: 00:00:00 | R25: 00:00:00 | S25: 00:00:00 | T25: 0 | U25: 4084 | V25: -4084 | W25: 0 | X25: 0 | Y25: 0 | AJ25: 32775 | AM25: =IF(#REF!="e1",1,IF(#REF!="e2",1,IF(#REF!="e3",1,2))) ->  | AR25: 16 | AX25: 0
E26: 17 | P26: 2 | Q26: 00:00:00 | R26: 00:00:00 | S26: 00:00:00 | T26: 0 | U26: 4084 | V26: -4084 | W26: 0 | X26: 0 | Y26: 0 | AJ26: 32775 | AL26: Il periodo compreso tra la | AM26: =IF(#REF!="e1",1,IF(#REF!="e2",1,IF(#REF!="e3",1,2))) ->  | AR26: 17 | AX26: 0
E27: 18 | P27: 2 | Q27: 00:00:00 | R27: 00:00:00 | S27: 00:00:00 | T27: 0 | U27: 4084 | V27: -4084 | W27: 0 | X27: 0 | Y27: 0 | AJ27: 32775 | AL27: data di apertura del | AM27: =IF(#REF!="e1",1,IF(#REF!="e2",1,IF(#REF!="e3",1,2))) ->  | AR27: 18 | AX27: 0
E28: 19 | P28: 2 | Q28: 00:00:00 | R28: 00:00:00 | S28: 00:00:00 | T28: 0 | U28: 4084 | V28: -4084 | W28: 0 | X28: 0 | Y28: 0 | AJ28: 32775 | AL28: fallimento e la data di | AM28: =IF(#REF!="e1",1,IF(#REF!="e2",1,IF(#REF!="e3",1,2))) ->  | AR28: 19 | AX28: 0
E29: 20 | P29: 2 | Q29: 00:00:00 | R29: 00:00:00 | S29: 00:00:00 | T29: 0 | U29: 4084 | V29: -4084 | W29: 0 | X29: 0 | Y29: 0 | AJ29: 32775 | AL29: chiusura è neutro. | AM29: =IF(#REF!="e1",1,IF(#REF!="e2",1,IF(#REF!="e3",1,2))) ->  | AR29: 20 | AX29: 0
E30: 21 | P30: 2 | Q30: 00:00:00 | R30: 00:00:00 | S30: 00:00:00 | T30: 0 | U30: 4084 | V30: -4084 | W30: 0 | X30: 0 | Y30: 0 | AJ30: 32775 | AM30: =IF(#REF!="e1",1,IF(#REF!="e2",1,IF(#REF!="e3",1,2))) ->  | AR30: 21 | AX30: 0
E31: 22 | P31: 2 | Q31: 00:00:00 | R31: 00:00:00 | S31: 00:00:00 | T31: 0 | U31: 4084 | V31: -4084 | W31: 0 | X31: 0 | Y31: 0 | AJ31: 32775 | AM31: =IF(#REF!="e1",1,IF(#REF!="e2",1,IF(#REF!="e3",1,2))) ->  | AR31: 22 | AX31: 0
E32: 23 | P32: 2 | Q32: 00:00:00 | R32: 00:00:00 | S32: 00:00:00 | T32: 0 | U32: 4084 | V32: -4084 | W32: 0 | X32: 0 | Y32: 0 | AJ32: 32775 | AM32: =IF(#REF!="e1",1,IF(#REF!="e2",1,IF(#REF!="e3",1,2))) ->  | AR32: 23 | AX32: 0
E33: 24 | P33: 2 | Q33: 00:00:00 | R33: 00:00:00 | S33: 00:00:00 | T33: 0 | U33: 4084 | V33: -4084 | W33: 0 | X33: 0 | Y33: 0 | AJ33: 32775 | AM33: =IF(#REF!="e1",1,IF(#REF!="e2",1,IF(#REF!="e3",1,2))) ->  | AR33: 24 | AX33: 0
E34: 25 | P34: 2 | Q34: 00:00:00 | R34: 00:00:00 | S34: 00:00:00 | T34: 0 | U34: 4084 | V34: -4084 | W34: 0 | X34: 0 | Y34: 0 | AJ34: 32775 | AM34: =IF(#REF!="e1",1,IF(#REF!="e2",1,IF(#REF!="e3",1,2))) ->  | AR34: 25 | AX34: 0
E35: 26 | P35: 2 | Q35: 00:00:00 | R35: 00:00:00 | S35: 00:00:00 | T35: 0 | U35: 4084 | V35: -4084 | W35: 0 | X35: 0 | Y35: 0 | AJ35: 32775 | AM35: =IF(#REF!="e1",1,IF(#REF!="e2",1,IF(#REF!="e3",1,2))) ->  | AR35: 26 | AX35: 0
E36: 27 | P36: 2 | Q36: 00:00:00 | R36: 00:00:00 | S36: 00:00:00 | T36: 0 | U36: 4084 | V36: -4084 | W36: 0 | X36: 0 | Y36: 0 | AJ36: 32775 | AM36: =IF(#REF!="e1",1,IF(#REF!="e2",1,IF(#REF!="e3",1,2))) ->  | AR36: 27 | AX36: 0
E37: 28 | P37: 2 | Q37: 00:00:00 | R37: 00:00:00 | S37: 00:00:00 | T37: 0 | U37: 4084 | V37: -4084 | W37: 0 | X37: 0 | Y37: 0 | AJ37: 32775 | AM37: =IF(#REF!="e1",1,IF(#REF!="e2",1,IF(#REF!="e3",1,2))) ->  | AR37: 28 | AX37: 0
E38: 29 | P38: 2 | Q38: 00:00:00 | R38: 00:00:00 | S38: 00:00:00 | T38: 0 | U38: 4084 | V38: -4084 | W38: 0 | X38: 0 | Y38: 0 | AJ38: 32775 | AM38: =IF(#REF!="e1",1,IF(#REF!="e2",1,IF(#REF!="e3",1,2))) ->  | AR38: 29 | AX38: 0
E39: 30 | P39: 2 | Q39: 00:00:00 | R39: 00:00:00 | S39: 00:00:00 | T39: 0 | U39: 4084 | V39: -4084 | W39: 0 | X39: 0 | Y39: 0 | AJ39: 32775 | AM39: =IF(#REF!="e1",1,IF(#REF!="e2",1,IF(#REF!="e3",1,2))) ->  | AR39: 30 | AX39: 0 | BA39: =IF(S39>0,INT(V39),"") -> 
J40: =SUM(J10:J39) -> 26000 | K40: =SUM(K10:K39) -> 0 | AV40: =SUM(AV10:AV39) -> 26000 | AW40: =SUM(AW10:AW39) -> 0 | BB40: =SUM(BB10:BB39) -> 15600 | BC40: =SUM(BC10:BC39) -> 2031.961644 | BD40: =SUM(BD10:BD39) -> 0 | BE40: =SUM(BE10:BE39) -> 0 | BF40: =SUM(BF10:BF39) -> 17631.96164
AY41: QUADRO RIEPILOGATIVO | BB41: IVS
BB42: IVS | BD42: SSN | BF42: TOTALE
AS43: A) | AT43: CONTRIBUZIONE EVASA ............................ | BB43: =ROUND(AV40,) -> 26000 | BD43: =ROUND(AW40,) -> 0 | BF43: =ROUND(AV40+AW40,) -> 26000
AS44: B) | AT44: AMMONTARE SANZIONI ............................. | BB44: =ROUND(BB40,0) -> 15600 | BD44: =ROUND(BD40,0) -> 0 | BF44: =BB44+BD44 -> 15600
AS45: C) | AT45: INTERESSI DI MORA ………………………… | BB45: =ROUND(BC40,0) -> 2032 | BD45: =ROUND(BE40,0) -> 0 | BF45: =BB45+BD45 -> 2032
AS46: D) | AT46: SANZIONI + INTERESSI | AW46: …………………. | BB46: =SUM(BB44:BB45) -> 17632 | BD46: =SUM(BD44:BD45) -> 0 | BF46: =SUM(BF44:BF45) -> 17632
AS47: TOTALE DEBITO ............................................. | BB47: =SUM(BB43:BB45) -> 43632 | BD47: =SUM(BD43:BD45) -> 0 | BF47: =SUM(BF43:BF45) -> 43632

Sheet tassi
A1: periodo | B1: tasso evasione | C1: prime rate | D1: tasso morosità | E1: interessi di mora | F1: interessi legali
A2: 1960-01-01 | B2: 0.3 | C2: 0.13 | D2: =IF(C2<>0,C2+5.5%,0) -> 0.185 | E2: 0.084
A3: 1988-02-29 | B3: 0.3 | C3: 0.13 | D3: =IF(C3<>0,C3+5.5%,0) -> 0.185 | E3: 0.084
A4: 1988-06-07 | B4: 0.3 | C4: 0.12625 | D4: =IF(C4<>0,C4+5.5%,0) -> 0.18125 | E4: 0.084
A5: 1988-08-16 | B5: 0.3 | C5: 0.125 | D5: 0.18 | E5: 0.084
A6: 1988-09-27 | B6: 0.3 | C6: 0.12625 | D6: 0.18125 | E6: 0.084 | G6: Il tasso per evasione è fissto al 30%
A7: 1988-10-18 | B7: 0.3 | C7: 0.12875 | D7: 0.18375 | E7: 0.084
A8: 1988-12-02 | B8: 0.3 | C8: 0.13 | D8: 0.185 | E8: 0.084 | G8: Il tasso per la morosità è calcolato aggiungendo al prime rate il 5,50%.
A9: 1989-04-27 | B9: 0.3 | C9: 0.14 | D9: 0.195 | E9: 0.084
A10: 1990-08-10 | B10: 0.3 | C10: 0.1325 | D10: 0.1875 | E10: 0.084
A11: 1990-08-22 | B11: 0.3 | C11: 0.13 | D11: 0.185 | E11: 0.084
A12: 1991-03-04 | B12: 0.3 | C12: 0.13125 | D12: 0.18625 | E12: 0.084
A13: 1991-04-24 | B13: 0.3 | C13: 0.135 | D13: 0.19 | E13: 0.084
A14: 1991-07-15 | B14: 0.3 | C14: 0.12875 | D14: 0.18375 | E14: 0.084
A15: 1991-08-03 | B15: 0.3 | C15: 0.12625 | D15: 0.18125 | E15: 0.084
A16: 1991-08-14 | B16: 0.3 | C16: 0.125 | D16: 0.18 | E16: 0.084
A17: 1992-02-28 | B17: 0.3 | C17: 0.12625 | D17: 0.18125 | E17: 0.084
A18: 1992-03-31 | B18: 0.3 | C18: 0.13 | D18: 0.185 | E18: 0.084
A19: 1992-06-27 | B19: 0.3 | C19: 0.13125 | D19: 0.18625 | E19: 0.084
A20: 1992-08-20 | B20: 0.3 | C20: 0.135 | D20: 0.19 | E20: 0.084
A21: 1992-10-15 | B21: 0.3 | C21: 0.14 | D21: 0.195 | E21: 0.084
A22: 1992-10-27 | B22: 0.3 | C22: 0.14875 | D22: 0.20375 | E22: 0.084
A23: 1992-11-02 | B23: 0.3 | C23: 0.1575 | D23: 0.2125 | E23: 0.084
A24: 1992-11-10 | B24: 0.3 | C24: 0.15375 | D24: 0.20875 | E24: 0.084
A25: 1992-12-18 | B25: 0.3 | C25: 0.17 | D25: 0.225 | E25: 0.084
A26: 1993-02-10 | B26: 0.3 | C26: 0.1625 | D26: 0.2175 | E26: 0.084
A27: 1993-02-18 | B27: 0.3 | C27: 0.15875 | D27: 0.21375 | E27: 0.084
A28: 1993-02-24 | B28: 0.3 | C28: 0.1475 | D28: 0.2025 | E28: 0.084
A29: 1993-04-02 | B29: 0.3 | C29: 0.14 | D29: 0.195 | E29: 0.084
A30: 1993-04-08 | B30: 0.3 | C30: 0.13625 | D30: 0.19125 | E30: 0.084
A31: 1993-04-29 | B31: 0.3 | C31: 0.1275 | D31: 0.1825 | E31: 0.084
A32: 1993-05-10 | B32: 0.3 | C32: 0.12625 | D32: 0.18125 | E32: 0.084
A33: 1993-08-09 | B33: 0.3 | C33: 0.12375 | D33: 0.17875 | E33: 0.084
A34: 1993-08-19 | B34: 0.3 | C34: 0.1225 | D34: 0.1775 | E34: 0.084
A35: 1993-10-02 | B35: 0.3 | C35: 0.11875 | D35: 0.17375 | E35: 0.084
A36: 1993-10-06 | B36: 0.3 | C36: 0.1175 | D36: 0.1725 | E36: 0.084
A37: 1993-10-15 | B37: 0.3 | C37: 0.11625 | D37: 0.17125 | E37: 0.084
A38: 1993-10-21 | B38: 0.3 | C38: 0.10875 | D38: 0.16375 | E38: 0.084
A39: 1993-12-07 | B39: 0.3 | C39: 0.10375 | D39: 0.15875 | E39: 0.084
A40: 1994-02-01 | B40: 0.3 | C40: 0.1 | D40: 0.155 | E40: 0.084
A41: 1994-02-11 | B41: 0.3 | C41: 0.09875 | D41: 0.15375 | E41: 0.084
A42: 1994-04-29 | B42: 0.3 | C42: 0.09375 | D42: 0.14875 | E42: 0.084
A43: 1994-07-27 | B43: 0.3 | C43: 0.09125 | D43: 0.14625 | E43: 0.084
A44: 1994-10-15 | B44: 0.3 | C44: 0.08875 | D44: 0.14375 | E44: 0.084
A45: 1994-10-22 | B45: 0.3 | C45: 0.09125 | D45: 0.14625 | E45: 0.084
A46: 1994-11-05 | B46: 0.3 | C46: 0.09375 | D46: 0.14875 | E46: 0.084
A47: 1995-05-04 | B47: 0.3 | C47: 0.1 | D47: 0.155 | E47: 0.084
A48: 1995-05-26 | B48: 0.3 | C48: 0.10125 | D48: 0.15625 | E48: 0.084
A49: 1995-06-12 | B49: 0.3 | C49: 0.10625 | D49: 0.16125 | E49: 0.084
A50: 1995-07-11 | B50: 0.3 | C50: 0.10875 | D50: 0.16375 | E50: 0.084
A51: 1995-07-24 | B51: 0.3 | C51: 0.11375 | D51: 0.16875 | E51: 0.084
A52: 1995-08-18 | B52: 0.3 | C52: 0.11625 | D52: 0.17125 | E52: 0.084
A53: 1995-10-30 | B53: 0.3 | C53: 0.115 | D53: 0.17 | E53: 0.084
A54: 1996-07-01 | B54: 0.3 | C54: 0.115 | D54: 0.17 | E54: 0.084
A55: 1996-09-20 | B55: 0.3 | C55: 0.10875 | D55: 0.16375 | E55: 0.084
A56: 1996-10-12 | B56: 0.3 | C56: 0.1075 | D56: 0.1625 | E56: 0.084
A57: 1996-10-24 | B57: 0.3 | C57: 0.1075 | D57: 0.1625 | E57: 0.084
A58: 1996-12-17 | B58: 0.3 | C58: 0.10125 | D58: 0.15625 | E58: 0.084
A59: 1997-01-22 | B59: 0.3 | C59: 0.1 | D59: 0.155 | E59: 0.084 | F59: 0.05
A60: 1997-03-03 | B60: 0.3 | C60: 0.0975 | D60: 0.1525 | E60: 0.084 | F60: 0.05
A61: 1997-03-21 | B61: 0.3 | C61: 0.09625 | D61: 0.15125 | E61: 0.084 | F61: 0.05
A62: 1997-04-01 | B62: 0.3 | C62: 0.095 | D62: 0.15 | E62: 0.084 | F62: 0.05
A63: 1997-08-23 | B63: 0.3 | C63: 0.09 | D63: 0.145 | E63: 0.084 | F63: 0.05
A64: 1998-02-23 | B64: 0.3 | C64: 0.08875 | D64: 0.14375 | E64: 0.084 | F64: 0.05
A65: 1998-02-27 | B65: 0.3 | C65: 0.08375 | D65: 0.13875 | E65: 0.084 | F65: 0.05
A66: 1998-03-11 | B66: 0.3 | C66: 0.0825 | D66: 0.1375 | E66: 0.084 | F66: 0.05
A67: 1998-06-22 | B67: 0.3 | C67: 0.07875 | D67: 0.13375 | E67: 0.084 | F67: 0.05
A68: 1998-12-30 | B68: 0.3 | C68: 0.0725 | D68: =IF(C68<>0,C68+5.5%,0) -> 0.1275 | E68: 0.084 | F68: 0.05
A69: 1999-01-01 | B69: 0.3 | C69: 0.03 | D69: 0.085 | E69: 0.084 | F69: 0.025
A70: 1999-04-14 | B70: 0.3 | C70: 0.025 | D70: 0.08 | E70: 0.084 | F70: 0.025
A71: 1999-11-10 | B71: 0.3 | C71: 0.03 | D71: 0.085 | E71: 0.084 | F71: 0.025
A72: 2000-02-09 | B72: 0.3 | C72: 0.0325 | D72: 0.0875 | E72: 0.084 | F72: 0.025
A73: 2000-03-22 | B73: 0.3 | C73: 0.035 | D73: 0.09 | E73: 0.084 | F73: 0.025
A74: 2000-05-04 | B74: 0.3 | C74: 0.0375 | D74: 0.0925 | E74: 0.084 | F74: 0.025
A75: 2000-06-15 | B75: 0.3 | C75: 0.0425 | D75: 0.0975 | E75: 0.084 | F75: 0.025
A76: 2000-09-06 | B76: 0.3 | C76: 0.045 | D76: 0.1 | E76: 0.084 | F76: 0.025
A77: 2000-10-01 | B77: 0.3 | C77: 0.045 | D77: 0.1 | E77: 0.084 | F77: 0.025
A78: 2000-10-11 | B78: 0.3 | C78: 0.0475 | D78: 0.1025 | E78: 0.084 | F78: 0.025
A79: 2001-01-01 | B79: 0.3 | C79: 0.0475 | D79: 0.1025 | E79: 0.084 | F79: 0.035
A80: 2001-05-15 | B80: 0.3 | C80: 0.045 | D80: 0.1 | E80: 0.084 | F80: 0.035
A81: 2001-09-05 | B81: 0.3 | C81: 0.0425 | D81: 0.0975 | E81: 0.084 | F81: 0.035
A82: 2001-09-19 | B82: 0.3 | C82: 0.0375 | D82: 0.0925 | E82: 0.084 | F82: 0.035
A83: 2001-11-14 | B83: 0.3 | C83: 0.0325 | D83: 0.0875 | E83: 0.084 | F83: 0.035
A84: 2002-01-01 | B84: 0.3 | C84: 0.0325 | D84: 0.0875 | E84: 0.084 | F84: 0.03
A85: 2002-12-11 | B85: 0.3 | C85: 0.0275 | D85: 0.0825 | E85: 0.084 | F85: 0.03
A86: 2003-03-12 | B86: 0.3 | C86: 0.025 | D86: 0.08 | E86: 0.084 | F86: 0.03
A87: 2003-06-09 | B87: 0.3 | C87: 0.02 | D87: 0.075 | E87: 0.084 | F87: 0.03
A88: 2004-01-01 | B88: 0.3 | C88: 0.02 | D88: 0.075 | E88: 0.084 | F88: 0.025
A89: 2005-12-06 | B89: 0.3 | C89: 0.0225 | D89: 0.0775 | E89: 0.084 | F89: 0.025
A90: 2006-03-08 | B90: 0.3 | C90: 0.025 | D90: 0.08 | E90: 0.084 | F90: 0.025
A91: 2006-06-15 | B91: 0.3 | C91: 0.0275 | D91: 0.0825 | E91: 0.084 | F91: 0.025
A92: 2006-08-09 | B92: 0.3 | C92: 0.03 | D92: 0.085 | E92: 0.084 | F92: 0.025
A93: 2006-10-11 | B93: 0.3 | C93: 0.0325 | D93: 0.0875 | E93: 0.084 | F93: 0.025
A94: 2006-12-13 | B94: 0.3 | C94: 0.035 | D94: 0.09 | E94: 0.084 | F94: 0.025
A95: 2007-03-14 | B95: 0.3 | C95: 0.0375 | D95: 0.0925 | E95: 0.084 | F95: 0.025
A96: 2007-06-13 | B96: 0.3 | C96: 0.04 | D96: 0.095 | E96: 0.084 | F96: 0.025
A97: 2008-01-01 | B97: 0.3 | C97: 0.04 | D97: 0.095 | E97: 0.084 | F97: 0.03
A98: 2008-07-09 | B98: 0.3 | C98: 0.0425 | D98: 0.0975 | E98: 0.084 | F98: 0.03
A99: 2008-10-15 | B99: 0.3 | C99: 0.0375 | D99: 0.0925 | E99: 0.084 | F99: 0.03
A100: 2008-11-12 | B100: 0.3 | C100: 0.0325 | D100: 0.0875 | E100: 0.084 | F100: 0.03
A101: 2008-12-10 | B101: 0.3 | C101: 0.025 | D101: 0.08 | E101: 0.084 | F101: 0.03
A102: 2009-01-21 | B102: 0.3 | C102: 0.02 | D102: 0.075 | E102: 0.084 | F102: 0.03
A103: 2009-03-11 | B103: 0.3 | C103: 0.015 | D103: 0.07 | E103: 0.084 | F103: 0.03 | G103: Dopo aver aggiornato i tassi cliccare su Ritorna a sanzioni
A104: 2009-04-08 | B104: 0.3 | C104: 0.0125 | D104: 0.0675 | E104: 0.084 | F104: 0.03 | G104: per salvare le modifiche.
A105: 2009-05-13 | B105: 0.3 | C105: 0.01 | D105: 0.065 | E105: 0.084 | F105: 0.03
A106: 2009-10-01 | B106: 0.3 | C106: 0.01 | D106: 0.065 | E106: 0.06836 | F106: 0.03
A107: 2010-01-01 | B107: 0.3 | C107: 0.01 | D107: 0.065 | E107: 0.06836 | F107: 0.01
A108: 2010-10-01 | B108: 0.3 | C108: 0.01 | D108: 0.065 | E108: 0.057567 | F108: 0.01
A109: 2011-01-01 | B109: 0.3 | C109: 0.01 | D109: 0.065 | E109: 0.057567 | F109: 0.015
A110: 2011-04-13 | B110: 0.3 | C110: 0.0125 | D110: 0.0675 | E110: 0.057567 | F110: 0.015
A111: 2011-07-13 | B111: 0.3 | C111: 0.015 | D111: 0.07 | E111: 0.057567 | F111: 0.015
A112: 2011-11-09 | B112: 0.3 | C112: 0.0125 | D112: 0.0675 | E112: 0.057567 | F112: 0.015
A113: 2011-11-10 | B113: 0.3 | C113: 0.0125 | D113: 0.0675 | E113: 0.05024 | F113: 0.015
A114: 2011-12-14 | B114: 0.3 | C114: 0.01 | D114: 0.065 | E114: 0.05024 | F114: 0.015
A115: 2012-01-01 | B115: 0.3 | C115: 0.01 | D115: 0.065 | E115: 0.05024 | F115: 0.025
A116: 2012-07-11 | B116: 0.3 | C116: 0.0075 | D116: 0.0625 | E116: 0.05024 | F116: 0.025
A117: 2012-10-01 | B117: 0.3 | C117: 0.0075 | D117: 0.0625 | E117: 0.0455 | F117: 0.025
A118: 2013-05-01 | B118: 0.3 | C118: 0.0075 | D118: =IF(C118<>0,C118+5.5%,0) -> 0.0625 | E118: 0.05223 | F118: 0.025
A119: 2013-05-08 | B119: 0.3 | C119: 0.005 | D119: =IF(C119<>0,C119+5.5%,0) -> 0.06 | E119: 0.05223 | F119: 0.025
A120: 2013-11-13 | B120: 0.3 | C120: 0.0025 | D120: =IF(C120<>0,C120+5.5%,0) -> 0.0575 | E120: 0.05223 | F120: 0.025
A121: 2014-01-01 | B121: 0.3 | C121: 0.0025 | D121: =IF(C121<>0,C121+5.5%,0) -> 0.0575 | E121: 0.05223 | F121: 0.01
A122: 2014-05-01 | B122: 0.3 | C122: 0.0025 | D122: =IF(C122<>0,C122+5.5%,0) -> 0.0575 | E122: 0.0514 | F122: 0.01
A123: 2014-06-11 | B123: 0.3 | C123: 0.0015 | D123: =IF(C123<>0,C123+5.5%,0) -> 0.0565 | E123: 0.0514 | F123: 0.01
A124: 2014-09-10 | B124: 0.3 | C124: 0.0005 | D124: 0.0555 | E124: 0.0514 | F124: 0.01
A125: 2015-01-01 | B125: 0.3 | C125: 0.0005 | D125: 0.0555 | E125: 0.0514 | F125: 0.005
A126: 2015-05-15 | B126: 0.3 | C126: 0.0005 | D126: 0.0555 | E126: 0.0488 | F126: 0.005
D127: 0
D128: 0
D129: 0
D130: 0
D131: 0
D132: =IF(C132<>0,C132+5.5%,0) -> 0
D133: 0
D134: 0
D135: 0
D136: 0
D137: 0
D138: 0
D139: 0
D140: 0
D141: 0
D142: 0
D143: 0
D144: 0
D145: 0
D146: 0
D147: 0
D148: 0
D149: 0
D150: 0

Sheet scadenze
A1: anno | B1: AGRICOLI | F1: CD/CM | K1: DOMESTICI
B2: 1° TRIM | C2: 2° TRIM | D2: 3° TRIM | E2: 4° TRIM | F2: 1° TRIM | G2: 2° TRIM | H2: 3° TRIM | I2: 4° TRIM | J2: 1° TRIM | K2: 2° TRIM | L2: 3° TRIM | M2: 4° TRIM
A3: 1988 | B3: 1988-09-10 | C3: 1988-12-10 | D3: 1989-03-10 | E3: 1989-06-10 | F3: 1988-07-10 | G3: 1988-09-10 | H3: 1988-11-10 | I3: 1989-01-10 | J3: 1988-07-10 | K3: 1988-09-10 | L3: 1988-11-10 | M3: 1989-01-10
A4: 1989 | B4: 1989-09-10 | C4: 1989-12-10 | D4: 1990-03-10 | E4: 1990-06-10 | F4: 1989-07-10 | G4: 1989-09-10 | H4: 1989-11-10 | I4: 1990-01-10 | J4: 1989-07-10 | K4: 1989-09-10 | L4: 1989-11-10 | M4: 1990-01-10
A5: 1990 | B5: 1990-09-10 | C5: 1990-12-10 | D5: 1991-03-10 | E5: 1991-06-10 | F5: 1990-07-10 | G5: 1990-09-10 | H5: 1990-11-10 | I5: 1991-01-10 | J5: 1990-07-10 | K5: 1990-09-10 | L5: 1990-11-10 | M5: 1991-01-10
A6: 1991 | B6: 1991-09-10 | C6: 1991-12-10 | D6: 1992-03-10 | E6: 1992-06-10 | F6: 1991-11-10 | G6: 1992-01-10 | H6: 1992-03-10 | I6: 1992-05-10 | J6: 1991-11-10 | K6: 1992-01-10 | L6: 1992-03-10 | M6: 1992-05-10
A7: 1992 | B7: 1992-09-10 | C7: 1992-12-10 | D7: 1993-03-10 | E7: 1993-06-10 | F7: 1992-07-10 | G7: 1992-09-10 | H7: 1992-11-10 | I7: 1993-01-10 | J7: 1992-07-10 | K7: 1992-09-10 | L7: 1992-11-10 | M7: 1993-01-10
A8: 1993 | B8: 1993-09-10 | C8: 1993-12-10 | D8: 1994-03-10 | E8: 1994-06-10 | F8: 1993-07-10 | G8: 1993-09-10 | H8: 1993-11-10 | I8: 1994-01-10 | J8: 1993-07-10 | K8: 1993-09-10 | L8: 1993-11-10 | M8: 1994-01-10
A9: 1994 | B9: 1994-09-10 | C9: 1994-12-10 | D9: 1995-03-10 | E9: 1995-06-10 | F9: 1994-07-10 | G9: 1994-09-10 | H9: 1994-11-10 | I9: 1995-01-10 | J9: 1994-07-10 | K9: 1994-09-10 | L9: 1994-11-10 | M9: 1995-01-10
A10: 1995 | B10: 1995-09-10 | C10: 1995-12-10 | D10: 1996-03-10 | E10: 1996-06-10 | F10: 1995-07-10 | G10: 1995-09-10 | H10: 1995-11-10 | I10: 1996-01-10 | J10: 1995-07-10 | K10: 1995-09-10 | L10: 1995-11-10 | M10: 1996-01-10
A11: 1996 | B11: 1996-09-10 | C11: 1996-12-10 | D11: 1997-03-10 | E11: 1997-06-10 | F11: 1996-07-10 | G11: 1996-09-10 | H11: 1996-11-10 | I11: 1997-01-10 | J11: 1996-07-10 | K11: 1996-09-10 | L11: 1996-11-10 | M11: 1997-01-10
A12: 1997 | B12: 1997-09-10 | C12: 1997-12-10 | D12: 1998-03-10 | E12: 1998-06-10 | F12: 1997-07-10 | G12: 1997-09-10 | H12: 1997-11-10 | I12: 1998-01-10 | J12: 1997-07-10 | K12: 1997-09-10 | L12: 1997-11-10 | M12: 1998-01-10
A13: 1998 | B13: 1998-09-15 | C13: 1998-12-15 | D13: 1999-03-15 | E13: 1999-06-15 | F13: 1998-07-15 | G13: 1998-09-15 | H13: 1998-11-15 | I13: 1999-01-15 | J13: 1998-07-15 | K13: 1998-09-15 | L13: 1998-11-15 | M13: 1999-01-15
A14: 1999 | B14: 1999-09-16 | C14: 1999-12-16 | D14: 2000-03-16 | E14: 2000-06-16 | F14: 1999-07-16 | G14: 1999-09-16 | H14: 1999-11-16 | I14: 2000-01-16 | J14: 1999-07-16 | K14: 1999-09-16 | L14: 1999-11-16 | M14: 2000-01-16
A15: 2000 | B15: 2000-09-16 | C15: 2000-12-16 | D15: 2001-03-16 | E15: 2001-06-16 | F15: 2000-07-16 | G15: 2000-09-16 | H15: 2000-11-16 | I15: 2001-01-16 | J15: 2000-04-10 | K15: 2000-07-10 | L15: 2000-10-10 | M15: 2001-01-10
A16: 2001 | B16: 2001-09-16 | C16: 2001-12-16 | D16: 2002-03-16 | E16: 2002-06-16 | F16: 2001-07-16 | G16: 2001-09-16 | H16: 2001-11-16 | I16: 2002-01-16 | J16: =J15+365 -> 2001-04-10 | K16: =K15+365 -> 2001-07-10 | L16: =L15+365 -> 2001-10-10 | M16: =M15+365 -> 2002-01-10
A17: 2002 | B17: 2002-09-16 | C17: 2002-12-16 | D17: 2003-03-16 | E17: 2003-06-16 | F17: 2002-07-16 | G17: 2002-09-16 | H17: 2002-11-16 | I17: 2003-01-16 | J17: =J16+365 -> 2002-04-10 | K17: =K16+365 -> 2002-07-10 | L17: 2002-10-10 | M17: 2003-01-10
A18: 2003 | B18: 2003-09-16 | C18: 2003-12-16 | D18: 2004-03-16 | E18: 2004-06-16 | F18: 2003-07-16 | G18: 2003-09-16 | H18: 2003-11-16 | I18: 2004-01-16 | J18: 2003-04-10 | K18: 2003-07-10 | L18: 2003-10-10 | M18: 2004-01-10
A19: 2004 | B19: 2004-09-16 | C19: 2004-12-16 | D19: 2005-03-16 | E19: 2005-06-16 | F19: 2004-07-16 | G19: 2004-09-16 | H19: 2004-11-16 | I19: 2005-01-16 | J19: =J18+366 -> 2004-04-10 | K19: =K18+366 -> 2004-07-10 | L19: =L18+366 -> 2004-10-10 | M19: =M18+366 -> 2005-01-10
A20: 2005 | B20: 2005-09-16 | C20: 2005-12-16 | D20: 2006-03-16 | E20: 2006-06-16 | F20: 2005-07-16 | G20: 2005-09-16 | H20: 2005-11-16 | I20: 2006-01-16 | J20: 2005-04-10 | K20: =K19+365 -> 2005-07-10 | L20: =L19+365 -> 2005-10-10 | M20: =M19+365 -> 2006-01-10
A21: 2006 | B21: 2006-09-16 | C21: 2006-12-16 | D21: 2007-03-16 | E21: 2007-06-16 | F21: 2006-07-16 | G21: 2006-09-16 | H21: 2006-11-16 | I21: 2007-01-16 | J21: 2006-04-10 | K21: =K20+365 -> 2006-07-10 | L21: 2006-10-10 | M21: 2007-01-10
A22: 2007 | B22: 2007-09-16 | C22: 2007-12-16 | D22: 2008-03-16 | E22: 2008-06-16 | F22: 2007-07-16 | G22: 2007-09-16 | H22: 2007-11-16 | I22: 2008-01-16 | J22: 2007-04-10 | K22: =K21+365 -> 2007-07-10 | L22: 2007-10-10 | M22: 2008-01-10
A23: 2008 | B23: 2008-09-16 | C23: 2008-12-16 | D23: 2009-03-16 | E23: 2009-06-16 | F23: 2008-07-16 | G23: 2008-09-16 | H23: 2008-11-16 | I23: 2009-01-16 | J23: =J22+366 -> 2008-04-10 | K23: =K22+366 -> 2008-07-10 | L23: =L22+366 -> 2008-10-10 | M23: =M22+366 -> 2009-01-10
A24: 2009 | B24: 2009-09-16 | C24: 2009-12-16 | D24: 2010-03-16 | E24: 2010-06-16 | F24: 2009-07-16 | G24: 2009-09-16 | H24: 2009-11-16 | I24: 2010-01-16 | J24: 2009-04-10 | K24: =K23+365 -> 2009-07-10 | L24: 2009-10-10 | M24: 2010-01-10
A25: 2010 | B25: 2010-09-16 | C25: 2010-12-16 | D25: 2011-03-16 | E25: 2011-06-16 | F25: 2010-07-16 | G25: 2010-09-16 | H25: 2010-11-16 | I25: 2011-01-16 | J25: 2010-04-10 | K25: =K24+365 -> 2010-07-10 | L25: 2010-10-10 | M25: 2011-01-10
A26: 2011 | B26: 2011-09-16 | C26: 2011-12-16 | D26: 2012-03-16 | E26: 2012-06-16 | F26: 2011-07-16 | G26: 2011-09-16 | H26: 2011-11-16 | I26: 2012-01-16 | J26: 2011-04-10 | K26: =K25+365 -> 2011-07-10 | L26: 2011-10-10 | M26: 2012-01-10
A27: 2012 | B27: =B26+366 -> 2012-09-16 | C27: =C26+366 -> 2012-12-16 | D27: =D26+365 -> 2013-03-16 | E27: =E26+365 -> 2013-06-16 | F27: =F26+366 -> 2012-07-16 | G27: 2012-09-16 | H27: 2012-11-16 | I27: 2013-01-16 | J27: 2012-04-10 | K27: 2012-07-10 | L27: 2012-10-10 | M27: 2013-01-10
A28: 2013 | B28: =B27+365 -> 2013-09-16 | C28: 2013-12-16 | D28: =D27+365 -> 2014-03-16 | E28: =E27+365 -> 2014-06-16 | F28: =F27+365 -> 2013-07-16 | G28: =G27+365 -> 2013-09-16 | H28: =H27+365 -> 2013-11-16 | I28: =I27+365 -> 2014-01-16 | J28: 2013-04-10 | K28: =K27+365 -> 2013-07-10 | L28: 2013-10-10 | M28: 2014-01-10
A29: 2014 | B29: 2014-09-16 | C29: 2014-12-16 | D29: =D28+365 -> 2015-03-16 | E29: 2015-06-16 | F29: =F28+365 -> 2014-07-16 | G29: 2014-09-16 | H29: 2014-11-16 | I29: 2015-01-16 | J29: 2014-04-10 | K29: =K28+365 -> 2014-07-10 | L29: 2014-10-10 | M29: 2015-01-10
A30: 2015 | B30: 2015-09-16 | C30: 2015-12-16 | D30: =D29+366 -> 2016-03-16 | E30: =E29+366 -> 2016-06-16 | F30: 2015-07-16 | G30: 2015-09-16 | H30: 2015-11-16 | I30: 2016-01-16 | J30: 2015-04-10 | K30: =K29+365 -> 2015-07-10 | L30: 2015-10-10 | M30: =M29+365 -> 2016-01-10
A31: 2016 | B31: =B30+366 -> 2016-09-16 | C31: =C30+366 -> 2016-12-16 | D31: =D30+365 -> 2017-03-16 | E31: 2017-06-16 | F31: =F30+366 -> 2016-07-16 | G31: 2016-09-16 | H31: 2016-11-16 | I31: 2017-01-16 | J31: 2016-04-10 | K31: 2016-07-10 | L31: 2016-10-10 | M31: 2017-01-10
A32: 2017 | B32: 2017-09-16 | C32: 2017-12-16 | D32: =D31+365 -> 2018-03-16 | E32: 2018-06-16 | F32: 2017-07-16 | G32: 2017-09-16 | H32: 2017-11-16 | I32: 2018-01-16 | J32: 2017-04-10 | K32: =K31+365 -> 2017-07-10 | L32: 2017-10-10 | M32: 2018-01-10
A33: 2018 | B33: 2018-09-16 | C33: 2018-12-16 | D33: =D32+365 -> 2019-03-16 | E33: 2019-06-16 | F33: 2018-07-16 | G33: 2018-09-16 | H33: 2018-11-16 | I33: 2019-01-16 | J33: 2018-04-10 | K33: 2018-07-10 | L33: 2018-10-10 | M33: 2019-01-10
A34: 2019 | B34: 2019-09-16 | C34: 2019-12-16 | D34: =D33+366 -> 2020-03-16 | E34: =E33+366 -> 2020-06-16 | F34: 2019-07-16 | G34: 2019-09-16 | H34: 2019-11-16 | I34: 2020-01-16 | J34: 2019-04-10 | K34: 2019-07-10 | L34: 2019-10-10 | M34: 2020-01-10
A35: 2020 | B35: =B34+366 -> 2020-09-16 | C35: =C34+366 -> 2020-12-16 | D35: =D34+365 -> 2021-03-16 | E35: 2021-06-16 | F35: =F34+366 -> 2020-07-16 | G35: 2020-09-16 | H35: 2020-11-16 | I35: 2021-01-16 | J35: 2020-04-10 | K35: 2020-07-10 | L35: 2020-10-10 | M35: 2021-01-10

Sheet help
C6: Il pgm effettua il calcolo delle somme aggiuntive secondo
C7: le nuove misure stabilite dal comma 8 dell'art.116 della
C8: legge 23/12/2000 n° 388.
C10: In pratica la procedura effettua 2 tipi di calcolo:
B12: 1- | C12: per i casi di morosità, applica come tasso annuo il tasso
C13: ufficiale di riferimento, maggiorato di 5,5 punti,
C14: con un tetto massimo del 40%.
C15: Raggiunto tale tetto la procedura applicherà, per i giorni
C16: intercorrenti tra la data di raggiungimento del tetto e quella
C17: del calcolo, sui soli contributi, gli interessi di mora
C18: di cui all'art. 14 Dlgs n° 46/99.
B20: 2- | C20: per i casi di evasione, applica il tasso annuo fisso del 30%
C21: con un tetto massimo del 60%.
C22: Raggiunto tale tetto la procedura applicherà, per i giorni
C23: intercorrenti tra la data di raggiungimento del tetto e quella
C24: del calcolo, sui soli contributi, gli interessi di mora
C25: di cui all'art. 14 Dlgs n° 46/99.
C27: E' possibile effettuare il calcolo dei contributi divisi tra
C28: previdenziali(IVS)e sanitari(SSN).
C30: Nella sezione INADEMPIENZA si inseriscono i valori del debito
C31: originario, al lordo degli acconti.
C32: Nella sezione ACCONTI si inseriscono fino a 10 acconti.
C34: Il programma effettua automaticamente il calcolo.
C35: Con i bottoni presenti sulla sinistra della videata è possibile
C36: stampare il prospetto di calcolo o vedere l'anteprima di stampa.
C37: E' possibile, inoltre, con i restanti bottoni,
C38: azzerare tutti i campi di acquisizione o aggiornare i tassi per
C39: la morosità (il tasso di riferimento perché i 5,5 punti in più
C40: li mette in automatico)
C42: Se state leggendo queste brevi istruzioni avete già scoperto
C43: l'utilizzo del tasto Help!

Sheet calcolo interessi legali
D2: DITTA: | E2: Farmacia Dr. Provacalcolo | AG2: Ditta: | AH2: =E2 -> Farmacia Dr. Provacalcolo
L3: anno calcolo | M3: =YEAR(E6) -> 2012 | O3: 35450 | W3: INTERESSI | AG3: Cod. | AH3: =E4 -> 12345678JK | AL3: 1995 | AN3: E
D4: CODICE | E4: 12345678JK | K4: E | W4: DI MORA | AL4: 1996 | AN4: M
K5: M
D6: DATA | E6: 2012-01-10 | K6: I | L6: =E6 -> 40918 | W6: =VLOOKUP($E$6,tassi,5) -> 0.05024 | AH6: ="data calcolo: " -> data calcolo: | AI6: =E6 -> 2012-01-10 | AL6: 1997
D7: TIPO (E/M) | K7: MOROSITA' =1 | AG7: TIPO EVENTO : | AI7: =IF(#REF!=""," ",#REF!) ->  | AL7: 1998
D8: TASSO CORRENTE......................... | K8: EVASIONE=2 | AL8: 1999
D10: trimestre | E10: anno | F10: scadenza | G10: importo contributi | H10: tipo | I10: tasso | K10: M 1 | P10: EVASIONE | Q10: morosità | R10: MOROSITA' | S10: evasione | T10: morosità | U10: tasso | W10: interessi | X10: interessi | Y10: int.legali | Z10: int.legali | AA10: int.legali | AB10: interessi | AF10: ANNO | AL10: 2000
G11: in EURO | K11: E 2 | W11: evasione | X11: morosità | Y11: giorni primo anno | Z11: anni | AA11: giorni ultimo anno | AB11: legali | AE11: TRIM. | AF11: =E12 -> 2008 | AG11: IMPORTO
E12: 2008 | K12: I 3 | O12: giorni totali | P12: giorni evasione | Q12: giorni morosità | AF12: SCADENZE | AL12: 2002
D13: 1 | E13: =IF(F13=""," ",IF(F13<$F$12,"data errata"," ")) ->  | F13: =IF(G13>0,DATE($E$12,5,16),"") -> 2008-05-16 | G13: 400 | H13: I | I13: =IF(G13=""," ",IF(H13="M",VLOOKUP(E6,tassi!A1:F168,4),IF(H13="E",VLOOKUP(E6,tassi!A1:F168,2),VLOOKUP(F13,tassi!A1:F168,6)))) -> 0.03 | K13: =IF(H13="M",1,IF(H13="E",2,3)) -> 3 | L13: =$E$6 -> 2012-01-10 | M13: =IF(F13="",0,F13) -> 2008-05-16 | O13: =IF(M13<>0,L13-M13,0) -> 1334 | P13: =IF(O13>730,O13-730,0) -> 604 | Q13: =IF(K13=2,0,IF(V13=0,0,40/V13/100)) -> 4800 | R13: =IF(Q13=0,0,IF(O13<Q13,0,O13-Q13)) -> 0 | S13: =IF(O13<=0,0,IF(G13*O13*V13>0.6*G13,0.6*G13,G13*O13*V13)) -> 44.46666667 | T13: =IF(O13<=0,0,IF(G13*O13*V13>0.4*G13,0.4*G13,G13*O13*V13)) -> 44.46666667 | U13: =IF(I13=" ",0,I13) -> 0.03 | V13: =U13/360 -> 8.333333333e-05 | W13: =IF(P13>0,G13*$W$6/365*P13,0) -> 33.25475068 | X13: =IF(R13>0,G13*$W$6/365*R13,0) -> 0 | AB13: =G13*V13*O13 -> 44.46666667 | AE13: =D13 -> 1 | AF13: =IF(F13=""," ",F13) -> 2008-05-16 | AG13: =IF(G13>0,G13,0) -> 400 | AL13: 2003
D14: 2 | E14: =IF(F14=""," ",IF(F14<$F$12,"data errata"," ")) ->  | F14: =IF(G14>0,DATE($E$12,8,16),"") -> 2008-08-16 | G14: 450 | H14: I | I14: =IF(G14=""," ",IF(H14="M",VLOOKUP(E7,tassi!A1:F168,4),IF(H14="E",VLOOKUP(E7,tassi!A1:F168,2),VLOOKUP(F14,tassi!A1:F168,6)))) -> 0.03 | K14: =IF(H14="M",1,IF(H14="E",2,3)) -> 3 | L14: =$E$6 -> 2012-01-10 | M14: =IF(F14="",0,F14) -> 2008-08-16 | O14: =IF(M14<>0,L14-M14,0) -> 1242 | P14: =IF(O14>730,O14-730,0) -> 512 | Q14: =IF(K14=2,0,IF(V14=0,0,40/V14/100)) -> 4800 | R14: =IF(Q14=0,0,IF(O14<Q14,0,O14-Q14)) -> 0 | S14: =IF(O14<=0,0,IF(G14*O14*V14>0.6*G14,0.6*G14,G14*O14*V14)) -> 46.575 | T14: =IF(O14<=0,0,IF(G14*O14*V14>0.4*G14,0.4*G14,G14*O14*V14)) -> 46.575 | U14: =IF(I14=" ",0,I14) -> 0.03 | V14: =U14/360 -> 8.333333333e-05 | W14: =IF(P14>0,G14*$W$6/365*P14,0) -> 31.71313973 | X14: =IF(R14>0,G14*$W$6/365*R14,0) -> 0 | AB14: =G14*V14*O14 -> 46.575 | AE14: =D14 -> 2 | AF14: =IF(F14=""," ",F14) -> 2008-08-16 | AG14: =IF(G14>0,G14,0) -> 450 | AL14: 2004
D15: 3 | E15: =IF(F15=""," ",IF(F15<$F$12,"data errata"," ")) ->  | F15: =IF(G15>0,DATE($E$12,11,16),"") ->  | H15: I | I15: =IF(G15=""," ",IF(H15="M",VLOOKUP(E8,tassi!A1:F168,4),IF(H15="E",VLOOKUP(E8,tassi!A1:F168,2),VLOOKUP(F15,tassi!A1:F168,6)))) ->  | K15: =IF(H15="M",1,IF(H15="E",2,3)) -> 3 | L15: =$E$6 -> 2012-01-10 | M15: =IF(F15="",0,F15) -> 00:00:00 | O15: =IF(M15<>0,L15-M15,0) -> 0 | P15: =IF(O15>730,O15-730,0) -> 0 | Q15: =IF(K15=2,0,IF(V15=0,0,40/V15/100)) -> 0 | R15: =IF(Q15=0,0,IF(O15<Q15,0,O15-Q15)) -> 0 | S15: =IF(O15<=0,0,IF(G15*O15*V15>0.6*G15,0.6*G15,G15*O15*V15)) -> 0 | T15: =IF(O15<=0,0,IF(G15*O15*V15>0.4*G15,0.4*G15,G15*O15*V15)) -> 0 | U15: =IF(I15=" ",0,I15) -> 0 | V15: =U15/360 -> 0 | W15: =IF(P15>0,G15*$W$6/365*P15,0) -> 0 | X15: =IF(R15>0,G15*$W$6/365*R15,0) -> 0 | AB15: =G15*V15*O15 -> 0 | AE15: =D15 -> 3 | AF15: =IF(F15=""," ",F15) ->  | AG15: =IF(G15>0,G15,0) -> 0 | AL15: 2005
D16: 4 | E16: =IF(F16=""," ",IF(F16<$F$12,"data errata"," ")) ->  | F16: =IF(G16>0,DATE($E$12+1,2,16),"") ->  | H16: I | I16: =IF(G16=""," ",IF(H16="M",VLOOKUP(E9,tassi!A1:F168,4),IF(H16="E",VLOOKUP(E9,tassi!A1:F168,2),VLOOKUP(F16,tassi!A1:F168,6)))) ->  | K16: =IF(H16="M",1,IF(H16="E",2,3)) -> 3 | L16: =$E$6 -> 2012-01-10 | M16: =IF(F16="",0,F16) -> 00:00:00 | O16: =IF(M16<>0,L16-M16,0) -> 0 | P16: =IF(O16>730,O16-730,0) -> 0 | Q16: =IF(K16=2,0,IF(V16=0,0,40/V16/100)) -> 0 | R16: =IF(Q16=0,0,IF(O16<Q16,0,O16-Q16)) -> 0 | S16: =IF(O16<=0,0,IF(G16*O16*V16>0.6*G16,0.6*G16,G16*O16*V16)) -> 0 | T16: =IF(O16<=0,0,IF(G16*O16*V16>0.4*G16,0.4*G16,G16*O16*V16)) -> 0 | U16: =IF(I16=" ",0,I16) -> 0 | V16: =U16/360 -> 0 | W16: =IF(P16>0,G16*$W$6/365*P16,0) -> 0 | X16: =IF(R16>0,G16*$W$6/365*R16,0) -> 0 | AB16: =G16*V16*O16 -> 0 | AE16: =D16 -> 4 | AF16: =IF(F16=""," ",F16) ->  | AG16: =IF(G16>0,G16,0) -> 0 | AL16: 2006
D17: valuta media | F17: =R17 -> 2008-07-01 | G17: =SUM(G13:G16) -> 850 | K17: =IF(F13<>"",F13,"") -> 39584 | L17: =IF(F14<>"",F14,"") -> 39676 | M17: =IF(F15<>"",F15,"") ->  | O17: =IF(F16<>"",F16,"") ->  | P17: =SUM(K17:O17) -> 79260 | Q17: =COUNTA(G13:G16) -> 2 | R17: =P17/Q17 -> 39630 | AE17: valuta media | AF17: =F17 -> 2008-07-01 | AG17: =G17 -> 850
AE19: da | AF19: a | AG19: tasso | AH19: giorni | AI19: interessi
D20: da | E20: a | F20: tasso | G20: giorni | I20: interessi
D21: =$F$17 -> 2008-07-01 | E21: =$M$21 -> 2008-12-31 | F21: =IF(D21<>" ",VLOOKUP(D21,tassi!A1:F168,6)," ") -> 0.03 | G21: =N21 -> 180 | I21: =IF(D21<>" ",ROUND($G$17*F21/360*G21,)," ") -> 13 | K21: =F17 -> 2008-07-01 | L21: =YEAR(K21) -> 2008 | M21: =DATE(L21,12,31) -> 2008-12-31 | N21: =IF(K21<>" ",DAYS360(K21,M21)," ") -> 180 | O21: =IF(K21<>" ",M21-K21," ") -> 183 | P21: 2000 | AE21: =D21 -> 2008-07-01 | AF21: =E21 -> 2008-12-31 | AG21: =F21 -> 0.03 | AH21: =G21 -> 180 | AI21: =I21 -> 13
D22: =IF(L22<=$M$3,K22," ") -> 2009-01-01 | E22: =M22 -> 2009-12-31 | F22: =IF(D22<>" ",VLOOKUP(D22,tassi!$A$1:$F$168,6)," ") -> 0.03 | G22: =N22 -> 360 | I22: =IF(D22<>" ",ROUND($G$17*F22/360*G22,)," ") -> 26 | K22: =IF($M$3>L21,DATE(L21+1,1,1)," ") -> 2009-01-01 | L22: =IF(K22<>" ",YEAR(K22)," ") -> 2009 | M22: =IF(K22<>" ",IF(L22=$M$3,$E$6,DATE(L22,12,31))," ") -> 2009-12-31 | N22: =IF(K22<>" ",DAYS360(K22,M22)," ") -> 360 | O22: =IF(K22<>" ",M22-K22," ") -> 364 | P22: 2001 | AE22: 2009-01-01 | AF22: 2009-12-31 | AG22: 0.03 | AH22: 360 | AI22: 26
D23: 2010-01-01 | E23: 2010-12-31 | F23: =IF(D23<>" ",VLOOKUP(D23,tassi!$A$1:$F$168,6)," ") -> 0.01 | G23: 360 | I23: 9 | K23: 2010-01-01 | L23: 2010 | M23: 2010-12-31 | N23: 360 | O23: 364 | P23: 2002 | AE23: 2010-01-01 | AF23: 2010-12-31 | AG23: 0.01 | AH23: 360 | AI23: 9
D24: 2011-01-01 | E24: 2011-12-31 | F24: =IF(D24<>" ",VLOOKUP(D24,tassi!$A$1:$F$168,6)," ") -> 0.015 | G24: 360 | I24: 13 | K24: 2011-01-01 | L24: 2011 | M24: 2011-12-31 | N24: 360 | O24: 364 | P24: 2003 | AE24: 2011-01-01 | AF24: 2011-12-31 | AG24: 0.015 | AH24: 360 | AI24: 13
D25: 2012-01-01 | E25: 2012-01-10 | F25: =IF(D25<>" ",VLOOKUP(D25,tassi!$A$1:$F$168,6)," ") -> 0.025 | G25: 9 | I25: 1 | K25: 2012-01-01 | L25: 2012 | M25: 2012-01-10 | N25: 9 | O25: 9 | P25: 2004 | AE25: 2012-01-01 | AF25: 2012-01-10 | AG25: 0.025 | AH25: 9 | AI25: 1
F26: =IF(D26<>" ",VLOOKUP(D26,tassi!$A$1:$F$168,6)," ") ->  | P26: 2005
F27: =IF(D27<>" ",VLOOKUP(D27,tassi!$A$1:$F$168,6)," ") ->  | P27: 2006
F28: =IF(D28<>" ",VLOOKUP(D28,tassi!$A$1:$F$168,6)," ") ->  | P28: 2007
F29: =IF(D29<>" ",VLOOKUP(D29,tassi!$A$1:$F$168,6)," ") ->  | P29: 2008
F30: =IF(D30<>" ",VLOOKUP(D30,tassi!$A$1:$F$168,6)," ") ->  | P30: 2009
F31: =IF(D31<>" ",VLOOKUP(D31,tassi!$A$1:$F$168,6)," ") ->  | P31: 2010
G32: =O32 ->  | P32: 2011 | AE32: TOTALE | AH32: =SUM(AH21:AH31) -> 1269 | AI32: =SUM(AI21:AI31) -> 62
D33: TOTALE | G33: =SUM(G21:G32) -> 1269 | I33: =SUM(I21:I32) -> 62 | P33: 2012 | AE33: totale contributi + interessi legali | AG33: =AG17+AI32 -> 912
P34: 2013
O35: 0 | P35: 2014
O36: 0 | P36: 2015
O37: 0 | P37: 2016
O38: 0 | P38: 2017
O39: 0 | P39: 2018
O40: 0 | P40: 2019
O41: 0 | P41: 2020
O42: 0
O43: 0

Sheet sanzaziende
E1: DITTA: | F1: dddd | AQ1: CALCOLO SANZIONI AZIENDE
Q2: 35450 | AA2: INTERESSI | AY2: 1995 | BA2: E
E3: MATRICOLA | G3: 8100000182 | O3: E | AA3: DI MORA | AU3: matricola: | AV3: =G3 -> 8100000182 | AY3: 1996 | BA3: M
O4: M | AF4: Per le nuove sanzioni introdotte dalla legge 183/2010 | AO4: data calcolo: | AP4: =F5 -> 2015-07-10 | AR4: ditta: | AS4: =IF(F1=""," ",F1) -> dddd
E5: DATA | F5: 2015-07-10 | N5: =F5 -> 42195 | O5: X | AA5: =VLOOKUP($F$5,tassi,5) -> 0.0488 | AF5: usare nel campo TIPO il valore X | AY5: 1997
E6: TIPO (E/M) | G6: m | J6: EURO | M6: MOROSITA' =1 | AG6: =IF(#REF!="e1",1,IF(#REF!="e2",1,IF(#REF!="e3",1,2))) ->  | AO6: TIPO EVENTO : | AQ6: N° Matricola ........….: | AS6: =IF($G$3=""," ",$G$3) -> 8100000182 | AY6: 1998
E7: TASSO CORRENTE......................... | J7: EURO | M7: EVASIONE=2 | AG7: =IF(#REF!="e1",1,IF(#REF!="e2",1,IF(#REF!="e3",1,2))) ->  | AY7: 1999
J8: EURO | R8: EVASIONE | S8: morosità | T8: nuova evasione | U8: MOROSITA' | V8: IVS | W8: IVS | X8: IVS | AA8: IVS | AB8: IVS | AC8: IVS | AK8: N. | AL8: ANNO | AM8: MESE | AN8: MESE | AO8: IMPORTO | AP8: EVAS. | AQ8: TASSO | AR8: DATA | AS8: GG | AT8: SANZIONI | AU8: INTERESSI | AV8: TOTALE | AY8: 2000
E9: N. | F9: Anno | G9: INIZIO | H9: FINE | I9: Controllo data | J9: IMPORTO CONTRIBUTI | K9: TIPO E/M | L9: TASSO | M9: flag morosità | N9: DATA1 | O9: DATA2 | P9: MEDIA | Q9: GIORNI TOT. | R9: GIORNIxINT. | S9: giorni x 40% | T9: GIORNIxINT. | U9: GIORNIxINT. | V9: SANZIONI EVASIONE | W9: SANZIONI MOROSITA' | X9: Nuove sanzioni evasione | Y9: TASSO | Z9: TASSO/GIORNI | AA9: INT. EVASIONE | AB9: INT. MOROSITA' | AC9: INT.Nuova evasione | AD9: C | AM9: INIZIO | AN9: FINE | AO9: CONTRIBUTI IVS in EURO | AP9: MOR. | AQ9: % | AR9: VALUTA | AT9: Legge 388/00 | AU9: DI MORA | AV9: SANZIONI | AY9: 2001
E10: 1 | F10: 2015 | G10: 3 | H10: 3 | I10: =IF(F10=0," ",IF(H10<G10,"data errata",IF($F$5<AR10,"data errata","OK"))) -> OK | J10: 11365 | K10: m | L10: =IF(K10=""," ",IF(K10="M",VLOOKUP($F$5,tassi,4),IF(K10="E",VLOOKUP($F$5,tassi,2),45%))) -> 0.0555 | M10: =IF(K10="M",1,IF(K10="E",2,3)) -> 1 | N10: =IF(G10=0,0,IF(F10<1998,DATE(F10,G10+1,20),IF(AND(F10=1998,G10<4),DATE(F10,G10+1,20),IF(F10>1998,DATE(F10,G10+1,16),DATE(F10,G10+1,15))))) -> 2015-04-16 | O10: =IF(H10=0,0,IF(F10<1998,DATE(F10,H10+1,20),IF(AND(F10=1998,H10<4),DATE(F10,H10+1,20),IF(F10>1998,DATE(F10,H10+1,16),DATE(F10,H10+1,15))))) -> 2015-04-16 | P10: =AVERAGE(N10,O10) -> 2015-04-16 | Q10: =IF(P10<>0,$N$5-P10,0) -> 85 | R10: =IF(Q10>730,Q10-730,0) -> 0 | S10: =IF(M10=2,0,40/Z10/100) -> 2630.630631 | T10: =IF(Q10>730,Q10-730,0) -> 0 | U10: =IF(S10=0,0,IF(Q10<S10,0,Q10-S10)) -> 0 | V10: =IF(Q10<=0,"",IF(J10*Q10*Z10>0.6*J10,0.6*J10,J10*Q10*Z10)) -> 146.8887329 | W10: =IF(Q10<=0,"",IF(J10*Q10*Z10>0.4*J10,0.4*J10,J10*Q10*Z10)) -> 146.8887329 | X10: =IF(Q10<=0,"",IF(J10*Q10*Z10>0.9*J10,0.9*J10,J10*Q10*Z10)) -> 146.8887329 | Y10: =L10 -> 0.0555 | Z10: =Y10/365 -> 0.0001520547945 | AA10: =IF(R10>0,J10*$AA$5/365*R10,"") ->  | AB10: =IF(U10>0,J10*$AA$5/365*U10,"") ->  | AC10: =IF(T10>0,J10*$AA$5/365*T10,"") ->  | AD10: =90*360+12*30+15 -> 32775 | AK10: =E10 -> 1 | AL10: =IF(F10>0,F10,"") -> 2015 | AM10: =IF(G10>0,G10,"") -> 3 | AN10: =IF(H10>0,H10,"") -> 3 | AO10: =IF(J10>0,J10,"") -> 11365 | AP10: =K10 -> m | AQ10: =IF(J10>0,Y10," ") -> 0.0555 | AR10: =IF(F10>0,P10," ") -> 2015-04-16 | AS10: =IF(P10>0,INT(Q10),"") -> 85 | AT10: =IF(M10=1,W10,IF(M10=2,V10,X10)) -> 146.8887329 | AU10: =IF(M10=1,AB10,IF(M10=2,AA10,AC10)) ->  | AV10: =IF(Q10=0,"",SUMIF(AT10:AU10,"<>""")) -> 146.8887329 | AY10: 2002
E11: 2 | I11: =IF(F11=0," ",IF(H11<G11,"data errata",IF($F$5<AR11,"data errata","OK"))) ->  | M11: =IF(K11="M",1,IF(K11="E",2,3)) -> 3 | N11: =IF(G11=0,0,IF(F11<1998,DATE(F11,G11+1,20),IF(AND(F11=1998,G11<4),DATE(F11,G11+1,20),IF(F11>1998,DATE(F11,G11+1,16),DATE(F11,G11+1,15))))) -> 00:00:00 | O11: =IF(H11=0,0,IF(F11<1998,DATE(F11,H11+1,20),IF(AND(F11=1998,H11<4),DATE(F11,H11+1,20),IF(F11>1998,DATE(F11,H11+1,16),DATE(F11,H11+1,15))))) -> 00:00:00 | P11: 00:00:00 | Q11: 0 | R11: 0 | T11: =IF(Q11>730,Q11-730,0) -> 0 | X11: =IF(Q11<=0,"",IF(J11*Q11*Z11>0.9*J11,0.9*J11,J11*Q11*Z11)) ->  | AC11: =IF(T11>0,J11*$AA$5/365*T11,"") ->  | AD11: 32775 | AK11: 2 | AP11: 0 | AQ11: =IF(J11>0,Y11," ") ->  | AT11: =IF(M11=1,W11,IF(M11=2,V11,X11)) ->  | AU11: =IF(M11=1,AB11,IF(M11=2,AA11,AC11)) ->  | AY11: 2003
E12: 3 | I12: =IF(F12=0," ",IF(H12<G12,"data errata",IF($F$5<AR12,"data errata","OK"))) ->  | M12: 3 | N12: 00:00:00 | O12: 00:00:00 | P12: 00:00:00 | Q12: 0 | R12: 0 | T12: 0 | AD12: 32775 | AK12: 3 | AP12: 0 | AQ12: =IF(J12>0,Y12," ") ->  | AY12: 2004
E13: 4 | M13: 3 | N13: 00:00:00 | O13: 00:00:00 | P13: 00:00:00 | Q13: 0 | R13: 0 | T13: 0 | AD13: 32775 | AK13: 4 | AP13: 0 | AY13: 2005
E14: 5 | M14: 3 | N14: 00:00:00 | O14: 00:00:00 | P14: 00:00:00 | Q14: 0 | R14: 0 | T14: 0 | AD14: 32775 | AF14: La data è quella in cui si | AK14: 5 | AP14: 0 | AY14: 2006
E15: 6 | M15: 3 | N15: 00:00:00 | O15: 00:00:00 | P15: 00:00:00 | Q15: 0 | R15: 0 | T15: 0 | AD15: 32775 | AF15: effettua il calcolo | AK15: 6 | AP15: 0 | AY15: 2007
E16: 7 | M16: 3 | N16: 00:00:00 | O16: 00:00:00 | P16: 00:00:00 | Q16: 0 | R16: 0 | T16: 0 | AD16: 32775 | AK16: 7 | AP16: 0 | AY16: 2008
E17: 8 | M17: 3 | N17: 00:00:00 | O17: 00:00:00 | P17: 00:00:00 | Q17: 0 | R17: 0 | T17: 0 | AD17: 32775 | AF17: L'importo dei contributi | AK17: 8 | AP17: 0 | AY17: 2009
E18: 9 | M18: 3 | N18: 00:00:00 | O18: 00:00:00 | P18: 00:00:00 | Q18: 0 | R18: 0 | T18: 0 | AD18: 32775 | AF18: è espresso in EURO | AK18: 9 | AP18: 0 | AY18: 2010
E19: 10 | M19: 3 | N19: 00:00:00 | O19: 00:00:00 | P19: 00:00:00 | Q19: 0 | R19: 0 | T19: 0 | AD19: 32775 | AK19: 10 | AP19: 0
E20: 11 | M20: 3 | N20: 00:00:00 | O20: 00:00:00 | P20: 00:00:00 | Q20: 0 | R20: 0 | T20: 0 | AD20: 32775 | AK20: 11 | AP20: 0
E21: 12 | M21: 3 | N21: 00:00:00 | O21: 00:00:00 | P21: 00:00:00 | Q21: 0 | R21: 0 | T21: 0 | AD21: 32775 | AF21: Il programma è utilizzabile per | AK21: 12 | AP21: 0
E22: 13 | M22: 3 | N22: 00:00:00 | O22: 00:00:00 | P22: 00:00:00 | Q22: 0 | R22: 0 | T22: 0 | AD22: 32775 | AF22: calcolare le sanzioni secondo | AK22: 13 | AP22: 0
E23: 14 | M23: 3 | N23: 00:00:00 | O23: 00:00:00 | P23: 00:00:00 | Q23: 0 | R23: 0 | T23: 0 | AD23: 32775 | AF23: quanto disposto dalla legge | AK23: 14 | AP23: 0
E24: 15 | M24: 3 | N24: 00:00:00 | O24: 00:00:00 | P24: 00:00:00 | Q24: 0 | R24: 0 | T24: 0 | AD24: 32775 | AF24: finanziaria 2001 (l. 388/00) | AK24: 15 | AP24: 0
E25: 16 | M25: 3 | N25: 00:00:00 | O25: 00:00:00 | P25: 00:00:00 | Q25: 0 | R25: 0 | T25: 0 | AD25: 32775 | AK25: 16 | AP25: 0
E26: 17 | M26: 3 | N26: 00:00:00 | O26: 00:00:00 | P26: 00:00:00 | Q26: 0 | R26: 0 | T26: 0 | AD26: 32775 | AK26: 17 | AP26: 0
E27: 18 | M27: 3 | N27: 00:00:00 | O27: 00:00:00 | P27: 00:00:00 | Q27: 0 | R27: 0 | T27: 0 | AD27: 32775 | AF27: E'utilizzabile anche per i | AK27: 18 | AP27: 0
E28: 19 | M28: 3 | N28: 00:00:00 | O28: 00:00:00 | P28: 00:00:00 | Q28: 0 | R28: 0 | T28: 0 | AD28: 32775 | AF28: fallimenti. | AK28: 19 | AP28: 0
E29: 20 | M29: 3 | N29: 00:00:00 | O29: 00:00:00 | P29: 00:00:00 | Q29: 0 | R29: 0 | T29: 0 | AD29: 32775 | AF29: Quindi con data di calcolo | AK29: 20 | AP29: 0
E30: 21 | M30: 3 | N30: 00:00:00 | O30: 00:00:00 | P30: 00:00:00 | Q30: 0 | R30: 0 | T30: 0 | AD30: 32775 | AF30: anteriore al gennaio 2001 | AK30: 21 | AP30: 0
E31: 22 | M31: 3 | N31: 00:00:00 | O31: 00:00:00 | P31: 00:00:00 | Q31: 0 | R31: 0 | T31: 0 | AD31: 32775 | AK31: 22 | AP31: 0
E32: 23 | M32: 3 | N32: 00:00:00 | O32: 00:00:00 | P32: 00:00:00 | Q32: 0 | R32: 0 | T32: 0 | AD32: 32775 | AK32: 23 | AP32: 0
E33: 24 | M33: 3 | N33: 00:00:00 | O33: 00:00:00 | P33: 00:00:00 | Q33: 0 | R33: 0 | T33: 0 | AD33: 32775 | AK33: 24 | AP33: 0
E34: 25 | M34: 3 | N34: 00:00:00 | O34: 00:00:00 | P34: 00:00:00 | Q34: 0 | R34: 0 | T34: 0 | AD34: 32775 | AK34: 25 | AP34: 0
E35: 26 | M35: 3 | N35: 00:00:00 | O35: 00:00:00 | P35: 00:00:00 | Q35: 0 | R35: 0 | T35: 0 | AD35: 32775 | AK35: 26 | AP35: 0
E36: 27 | M36: 3 | N36: 00:00:00 | O36: 00:00:00 | P36: 00:00:00 | Q36: 0 | R36: 0 | T36: 0 | AD36: 32775 | AK36: 27 | AP36: 0
E37: 28 | M37: 3 | N37: 00:00:00 | O37: 00:00:00 | P37: 00:00:00 | Q37: 0 | R37: 0 | T37: 0 | AD37: 32775 | AK37: 28 | AP37: 0
E38: 29 | M38: 3 | N38: 00:00:00 | O38: 00:00:00 | P38: 00:00:00 | Q38: 0 | R38: 0 | T38: 0 | AD38: 32775 | AK38: 29 | AP38: 0
E39: 30 | I39: =IF(F39=0," ",IF(H39<G39,"data errata",IF($F$5<AR39,"data errata","OK"))) ->  | M39: 3 | N39: 00:00:00 | O39: 00:00:00 | P39: 00:00:00 | Q39: 0 | R39: 0 | T39: 0 | AD39: 32775 | AK39: 30 | AP39: 0
J40: =SUM(J10:J39) -> 11365 | AO40: =SUM(AO10:AO39) -> 11365 | AT40: =SUM(AT10:AT39) -> 146.8887329 | AU40: =SUM(AU10:AU39) -> 0 | AV40: =SUM(AV10:AV39) -> 146.8887329
AQ41: QUADRO RIEPILOGATIVO | AT41: IVS
AT42: TOTALE
AL43: A) | AM43: CONTRIBUZIONE EVASA ............................ | AT43: =ROUND(AO40,) -> 11365
AL44: B) | AM44: AMMONTARE SANZIONI ............................. | AT44: =ROUND(AT40,0) -> 147
AL45: C) | AM45: INTERESSI DI MORA ………………………… | AT45: =ROUND(AU40,0) -> 0
AL46: D) | AM46: SANZIONI + INTERESSI | AT46: =SUM(AT44:AT45) -> 147
AL47: TOTALE DEBITO ............................................. | AT47: =SUM(AT43:AT45) -> 11512

Sheet Domestici
E3: CALCOLO SANZIONI L.388/2000
E7: Dat. Lav.: | F7: Caio Alberto | AC7: CALCOLO SANZIONI L.388/2000 lavoratori domestici
O8: 35450 | W8: INTERESSI | AL8: 1995 | AN8: E
E9: Lavoratore | F9: Tizia Maria | L9: E | W9: DI MORA | AC9: datore di lavoro : | AD9: =F7 -> Caio Alberto | AG9: lavoratore domestico : | AI9: =F9 -> Tizia Maria | AL9: 1996 | AN9: M
L10: M
E11: DATA | F11: 2015-03-10 | H11: DOMESTICI | M11: =F11 -> 42073 | W11: =VLOOKUP($F$11,tassi,5) -> 0.0514 | AC11: data calcolo: | AD11: =F11 -> 2015-03-10 | AL11: 1997
E12: TIPO (E/M) | L12: MOROSITA' =1 | AC12: TIPO EVENTO : | AE12: =IF(#REF!=""," ",#REF!) ->  | AL12: 1998
E13: TASSO CORRENTE......................... | L13: EVASIONE=2 | AL13: 1999
E15: trimestre | F15: anno | G15: scadenza | H15: importo contributi | I15: e/m | J15: tasso | L15: M 1 | P15: EVASIONE | Q15: morosità | R15: MOROSITA' | S15: evasione | T15: morosità | W15: interessi | X15: interessi | AB15: ANNO | AL15: 2000
L16: E 2 | W16: evasione | X16: morosità | AA16: TRIM. | AB16: =F17 -> 2013 | AC16: IMPORTO | AD16: E/M | AE16: GIORNI | AF16: TASSO | AG16: SANZIONI | AH16: INTERESSI | AI16: TOTALE
F17: 2013 | AB17: SCADENZE | AL17: 2002
E18: 1 | G18: =VLOOKUP(F17,scadenze,10) -> 2013-04-10 | H18: 1000 | I18: E | J18: =IF(H18=""," ",IF(I18="M",VLOOKUP(F11,tassi,4),VLOOKUP(F11,tassi,2))) -> 0.3 | L18: =IF(I18="M",1,2) -> 2 | M18: =$F$11 -> 2015-03-10 | N18: =IF(G18="",0,G18) -> 2013-04-10 | O18: =IF(N18<>0,M18-N18,0) -> 699 | P18: =IF(O18>730,O18-730,0) -> 0 | Q18: =IF(L18=2,0,IF(V18=0,0,40/V18/100)) -> 0 | R18: =IF(Q18=0,0,IF(O18<Q18,0,O18-Q18)) -> 0 | S18: =IF(O18<=0,0,IF(H18*O18*V18>0.6*H18,0.6*H18,H18*O18*V18)) -> 574.5205479 | T18: =IF(O18<=0,0,IF(H18*O18*V18>0.4*H18,0.4*H18,H18*O18*V18)) -> 400 | U18: =IF(J18=" ",0,J18) -> 0.3 | V18: =U18/365 -> 0.0008219178082 | W18: =IF(P18>0,H18*$W$11/365*P18,0) -> 0 | X18: =IF(R18>0,H18*$W$11/365*R18,0) -> 0 | AA18: =E18 -> 1 | AB18: =IF(G18=""," ",G18) -> 2013-04-10 | AC18: =IF(H18>0,H18,0) -> 1000 | AD18: =I18 -> E | AE18: =IF(AC18>0,INT(O18),0) -> 699 | AF18: =IF(J18=""," ",J18) -> 0.3 | AG18: =IF(L18=1,T18,S18) -> 574.5205479 | AH18: =IF(L18=1,X18,W18) -> 0 | AI18: =ROUND(AG18+AH18,) -> 575 | AL18: 2003
E19: 2 | G19: =VLOOKUP(F17,scadenze,11) -> 2013-07-10 | J19: =IF(H19=""," ",IF(I19="M",VLOOKUP(F11,tassi,4),VLOOKUP(F11,tassi,2))) ->  | L19: =IF(I19="M",1,2) -> 2 | M19: =$F$11 -> 2015-03-10 | N19: =IF(G19="",0,G19) -> 2013-07-10 | O19: =IF(N19<>0,M19-N19,0) -> 608 | P19: =IF(O19>730,O19-730,0) -> 0 | Q19: =IF(L19=2,0,IF(V19=0,0,40/V19/100)) -> 0 | R19: =IF(Q19=0,0,IF(O19<Q19,0,O19-Q19)) -> 0 | S19: =IF(O19<=0,0,IF(H19*O19*V19>0.6*H19,0.6*H19,H19*O19*V19)) -> 0 | T19: =IF(O19<=0,0,IF(H19*O19*V19>0.4*H19,0.4*H19,H19*O19*V19)) -> 0 | U19: =IF(J19=" ",0,J19) -> 0 | V19: =U19/365 -> 0 | W19: =IF(P19>0,H19*$W$11/365*P19,0) -> 0 | X19: =IF(R19>0,H19*$W$11/365*R19,0) -> 0 | AA19: =E19 -> 2 | AB19: =IF(G19=""," ",G19) -> 2013-07-10 | AC19: =IF(H19>0,H19,0) -> 0 | AD19: =I19 -> 0 | AE19: =IF(AC19>0,INT(O19),0) -> 0 | AF19: =IF(J19=""," ",J19) ->  | AG19: =IF(L19=1,T19,S19) -> 0 | AH19: =IF(L19=1,X19,W19) -> 0 | AI19: =ROUND(AG19+AH19,) -> 0 | AL19: 2004
E20: 3 | G20: =VLOOKUP(F17,scadenze,12) -> 2013-10-10 | J20: =IF(H20=""," ",IF(I20="M",VLOOKUP(F11,tassi,4),VLOOKUP(F11,tassi,2))) ->  | L20: =IF(I20="M",1,2) -> 2 | M20: =$F$11 -> 2015-03-10 | N20: =IF(G20="",0,G20) -> 2013-10-10 | O20: =IF(N20<>0,M20-N20,0) -> 516 | P20: =IF(O20>730,O20-730,0) -> 0 | Q20: =IF(L20=2,0,IF(V20=0,0,40/V20/100)) -> 0 | R20: =IF(Q20=0,0,IF(O20<Q20,0,O20-Q20)) -> 0 | S20: =IF(O20<=0,0,IF(H20*O20*V20>0.6*H20,0.6*H20,H20*O20*V20)) -> 0 | T20: =IF(O20<=0,0,IF(H20*O20*V20>0.4*H20,0.4*H20,H20*O20*V20)) -> 0 | U20: =IF(J20=" ",0,J20) -> 0 | V20: =U20/365 -> 0 | W20: =IF(P20>0,H20*$W$11/365*P20,0) -> 0 | X20: =IF(R20>0,H20*$W$11/365*R20,0) -> 0 | AA20: =E20 -> 3 | AB20: =IF(G20=""," ",G20) -> 2013-10-10 | AC20: =IF(H20>0,H20,0) -> 0 | AD20: =I20 -> 0 | AE20: =IF(AC20>0,INT(O20),0) -> 0 | AF20: =IF(J20=""," ",J20) ->  | AG20: =IF(L20=1,T20,S20) -> 0 | AH20: =IF(L20=1,X20,W20) -> 0 | AI20: =ROUND(AG20+AH20,) -> 0 | AL20: 2005
E21: 4 | G21: =VLOOKUP(F17,scadenze,13) -> 2014-01-10 | J21: =IF(H21=""," ",IF(I21="M",VLOOKUP(F11,tassi,4),VLOOKUP(F11,tassi,2))) ->  | L21: =IF(I21="M",1,2) -> 2 | M21: =$F$11 -> 2015-03-10 | N21: =IF(G21="",0,G21) -> 2014-01-10 | O21: =IF(N21<>0,M21-N21,0) -> 424 | P21: =IF(O21>730,O21-730,0) -> 0 | Q21: =IF(L21=2,0,IF(V21=0,0,40/V21/100)) -> 0 | R21: =IF(Q21=0,0,IF(O21<Q21,0,O21-Q21)) -> 0 | S21: =IF(O21<=0,0,IF(H21*O21*V21>0.6*H21,0.6*H21,H21*O21*V21)) -> 0 | T21: =IF(O21<=0,0,IF(H21*O21*V21>0.4*H21,0.4*H21,H21*O21*V21)) -> 0 | U21: =IF(J21=" ",0,J21) -> 0 | V21: =U21/365 -> 0 | W21: =IF(P21>0,H21*$W$11/365*P21,0) -> 0 | X21: =IF(R21>0,H21*$W$11/365*R21,0) -> 0 | AA21: =E21 -> 4 | AB21: =IF(G21=""," ",G21) -> 2014-01-10 | AC21: =IF(H21>0,H21,0) -> 0 | AD21: =I21 -> 0 | AE21: =IF(AC21>0,INT(O21),0) -> 0 | AF21: =IF(J21=""," ",J21) ->  | AG21: =IF(L21=1,T21,S21) -> 0 | AH21: =IF(L21=1,X21,W21) -> 0 | AI21: =ROUND(AG21+AH21,) -> 0 | AL21: 2006
F22: TOTALE | H22: =SUM(H18:H21) -> 1000 | AB22: TOTALE | AC22: =SUM(AC18:AC21) -> 1000 | AG22: =SUM(AG18:AG21) -> 574.5205479 | AH22: =SUM(AH18:AH21) -> 0 | AI22: =ROUND(AG22+AH22,) -> 575
E25: =IF(F17=1998,"N.B. LE SCADENZE SONO RELATIVE AI TITOLARI DI PARTITA IVA","") -> 
AB26: A) | AC26: TOTALE CONTRIBUTI | AG26: =ROUND(AC22,) -> 1000
AB27: B) | AC27: TOTALE SANZIONI | AG27: =ROUND(AG22,) -> 575
AB28: C) | AC28: TOTALE INTERESSI DI MORA | AG28: =ROUND(AH22,) -> 0
AB29: D) | AC29: TOTALE SANZIONI + INTERESSI | AG29: =AI22 -> 575
AB30: TOTALE DEBITO ............................................. | AG30: =AG26+AG29 -> 1575
